{"text_format":"3","workbook":"xlsx","n_sheets":2,"sheets":["Skolschema","Klasslista"],"not_rendered":{"defined_names":17},"read":"whole","date_system":"1900"}

{"sheet":"Skolschema","index":0,"n_rows":56,"n_cols":9,"rows_kept":56,"merged":[[0,1,1,5],[0,8,1,8]]}
[null,"SKOLSCHEMA",{"$nulls":4},"STARTTID SCHEMA","TIDSINTERVALL","Klasslista"]
[{"$nulls":6},"08:00:00","15 MIN"]
[null,"TID","SÖNDAG","MÅNDAG","TISDAG","ONSDAG","TORSDAG","FREDAG","LÖRDAG"]
[null,{"$f":"StartSchema","v":"08:00:00"},{"$f":"IFERROR(INDEX(Lektionslista[],MATCH(SUMPRODUCT((Lektionslista[DAG]=Skolschema[[#Headers],[SÖNDAG]])*(ROUNDDOWN($B4,10)>=ROUNDDOWN(Lektionslista[STARTTID],10))*($B4<=Lektionslista[SLUTTID]),Lektionslista[UNIK]),Lektionslista[UNIK],0),2),0)","v":0},{"$f":"IFERROR(INDEX(Lektionslista[],MATCH(SUMPRODUCT((Lektionslista[DAG]=Skolschema[[#Headers],[MÅNDAG]])*(ROUNDDOWN($B4,10)>=ROUNDDOWN(Lektionslista[STARTTID],10))*($B4<=Lektionslista[SLUTTID]),Lektionslista[UNIK]),Lektionslista[UNIK],0),2),0)","v":0},{"$f":"IFERROR(INDEX(Lektionslista[],MATCH(SUMPRODUCT((Lektionslista[DAG]=Skolschema[[#Headers],[TISDAG]])*(ROUNDDOWN($B4,10)>=ROUNDDOWN(Lektionslista[STARTTID],10))*($B4<=Lektionslista[SLUTTID]),Lektionslista[UNIK]),Lektionslista[UNIK],0),2),0)","v":0},{"$f":"IFERROR(INDEX(Lektionslista[],MATCH(SUMPRODUCT((Lektionslista[DAG]=Skolschema[[#Headers],[ONSDAG]])*(ROUNDDOWN($B4,10)>=ROUNDDOWN(Lektionslista[STARTTID],10))*($B4<=Lektionslista[SLUTTID]),Lektionslista[UNIK]),Lektionslista[UNIK],0),2),0)","v":0},{"$f":"IFERROR(INDEX(Lektionslista[],MATCH(SUMPRODUCT((Lektionslista[DAG]=Skolschema[[#Headers],[TORSDAG]])*(ROUNDDOWN($B4,10)>=ROUNDDOWN(Lektionslista[STARTTID],10))*($B4<=Lektionslista[SLUTTID]),Lektionslista[UNIK]),Lektionslista[UNIK],0),2),0)","v":0},{"$f":"IFERROR(INDEX(Lektionslista[],MATCH(SUMPRODUCT((Lektionslista[DAG]=Skolschema[[#Headers],[FREDAG]])*(ROUNDDOWN($B4,10)>=ROUNDDOWN(Lektionslista[STARTTID],10))*($B4<=Lektionslista[SLUTTID]),Lektionslista[UNIK]),Lektionslista[UNIK],0),2),0)","v":0},{"$f":"IFERROR(INDEX(Lektionslista[],MATCH(SUMPRODUCT((Lektionslista[DAG]=Skolschema[[#Headers],[LÖRDAG]])*(ROUNDDOWN($B4,10)>=ROUNDDOWN(Lektionslista[STARTTID],10))*($B4<=Lektionslista[SLUTTID]),Lektionslista[UNIK]),Lektionslista[UNIK],0),2),0)","v":0}]
[null,{"$f":"B4+Ökning","v":"08:15:00"},{"$f":"IFERROR(INDEX(Lektionslista[],MATCH(SUMPRODUCT((Lektionslista[DAG]=Skolschema[[#Headers],[SÖNDAG]])*(ROUNDDOWN($B5,10)>=ROUNDDOWN(Lektionslista[STARTTID],10))*($B5<=Lektionslista[SLUTTID]),Lektionslista[UNIK]),Lektionslista[UNIK],0),2),0)","v":0},{"$f":"IFERROR(INDEX(Lektionslista[],MATCH(SUMPRODUCT((Lektionslista[DAG]=Skolschema[[#Headers],[MÅNDAG]])*(ROUNDDOWN($B5,10)>=ROUNDDOWN(Lektionslista[STARTTID],10))*($B5<=Lektionslista[SLUTTID]),Lektionslista[UNIK]),Lektionslista[UNIK],0),2),0)","v":"MTH-113"},{"$f":"IFERROR(INDEX(Lektionslista[],MATCH(SUMPRODUCT((Lektionslista[DAG]=Skolschema[[#Headers],[TISDAG]])*(ROUNDDOWN($B5,10)>=ROUNDDOWN(Lektionslista[STARTTID],10))*($B5<=Lektionslista[SLUTTID]),Lektionslista[UNIK]),Lektionslista[UNIK],0),2),0)","v":0},{"$f":"IFERROR(INDEX(Lektionslista[],MATCH(SUMPRODUCT((Lektionslista[DAG]=Skolschema[[#Headers],[ONSDAG]])*(ROUNDDOWN($B5,10)>=ROUNDDOWN(Lektionslista[STARTTID],10))*($B5<=Lektionslista[SLUTTID]),Lektionslista[UNIK]),Lektionslista[UNIK],0),2),0)","v":"MTH-113"},{"$f":"IFERROR(INDEX(Lektionslista[],MATCH(SUMPRODUCT((Lektionslista[DAG]=Skolschema[[#Headers],[TORSDAG]])*(ROUNDDOWN($B5,10)>=ROUNDDOWN(Lektionslista[STARTTID],10))*($B5<=Lektionslista[SLUTTID]),Lektionslista[UNIK]),Lektionslista[UNIK],0),2),0)","v":0},{"$f":"IFERROR(INDEX(Lektionslista[],MATCH(SUMPRODUCT((Lektionslista[DAG]=Skolschema[[#Headers],[FREDAG]])*(ROUNDDOWN($B5,10)>=ROUNDDOWN(Lektionslista[STARTTID],10))*($B5<=Lektionslista[SLUTTID]),Lektionslista[UNIK]),Lektionslista[UNIK],0),2),0)","v":"MTH-113"},{"$f":"IFERROR(INDEX(Lektionslista[],MATCH(SUMPRODUCT((Lektionslista[DAG]=Skolschema[[#Headers],[LÖRDAG]])*(ROUNDDOWN($B5,10)>=ROUNDDOWN(Lektionslista[STARTTID],10))*($B5<=Lektionslista[SLUTTID]),Lektionslista[UNIK]),Lektionslista[UNIK],0),2),0)","v":0}]
[null,"08:30:00",{"$f":"IFERROR(INDEX(Lektionslista[],MATCH(SUMPRODUCT((Lektionslista[DAG]=Skolschema[[#Headers],[SÖNDAG]])*(ROUNDDOWN($B6,10)>=ROUNDDOWN(Lektionslista[STARTTID],10))*($B6<=Lektionslista[SLUTTID]),Lektionslista[UNIK]),Lektionslista[UNIK],0),2),0)","v":0},{"$f":"IFERROR(INDEX(Lektionslista[],MATCH(SUMPRODUCT((Lektionslista[DAG]=Skolschema[[#Headers],[MÅNDAG]])*(ROUNDDOWN($B6,10)>=ROUNDDOWN(Lektionslista[STARTTID],10))*($B6<=Lektionslista[SLUTTID]),Lektionslista[UNIK]),Lektionslista[UNIK],0),2),0)","v":"MTH-113"},{"$f":"IFERROR(INDEX(Lektionslista[],MATCH(SUMPRODUCT((Lektionslista[DAG]=Skolschema[[#Headers],[TISDAG]])*(ROUNDDOWN($B6,10)>=ROUNDDOWN(Lektionslista[STARTTID],10))*($B6<=Lektionslista[SLUTTID]),Lektionslista[UNIK]),Lektionslista[UNIK],0),2),0)","v":0},{"$f":"IFERROR(INDEX(Lektionslista[],MATCH(SUMPRODUCT((Lektionslista[DAG]=Skolschema[[#Headers],[ONSDAG]])*(ROUNDDOWN($B6,10)>=ROUNDDOWN(Lektionslista[STARTTID],10))*($B6<=Lektionslista[SLUTTID]),Lektionslista[UNIK]),Lektionslista[UNIK],0),2),0)","v":"MTH-113"},{"$f":"IFERROR(INDEX(Lektionslista[],MATCH(SUMPRODUCT((Lektionslista[DAG]=Skolschema[[#Headers],[TORSDAG]])*(ROUNDDOWN($B6,10)>=ROUNDDOWN(Lektionslista[STARTTID],10))*($B6<=Lektionslista[SLUTTID]),Lektionslista[UNIK]),Lektionslista[UNIK],0),2),0)","v":0},{"$f":"IFERROR(INDEX(Lektionslista[],MATCH(SUMPRODUCT((Lektionslista[DAG]=Skolschema[[#Headers],[FREDAG]])*(ROUNDDOWN($B6,10)>=ROUNDDOWN(Lektionslista[STARTTID],10))*($B6<=Lektionslista[SLUTTID]),Lektionslista[UNIK]),Lektionslista[UNIK],0),2),0)","v":"MTH-113"},{"$f":"IFERROR(INDEX(Lektionslista[],MATCH(SUMPRODUCT((Lektionslista[DAG]=Skolschema[[#Headers],[LÖRDAG]])*(ROUNDDOWN($B6,10)>=ROUNDDOWN(Lektionslista[STARTTID],10))*($B6<=Lektionslista[SLUTTID]),Lektionslista[UNIK]),Lektionslista[UNIK],0),2),0)","v":0}]
[null,"08:45:00",{"$f":"IFERROR(INDEX(Lektionslista[],MATCH(SUMPRODUCT((Lektionslista[DAG]=Skolschema[[#Headers],[SÖNDAG]])*(ROUNDDOWN($B7,10)>=ROUNDDOWN(Lektionslista[STARTTID],10))*($B7<=Lektionslista[SLUTTID]),Lektionslista[UNIK]),Lektionslista[UNIK],0),2),0)","v":0},{"$f":"IFERROR(INDEX(Lektionslista[],MATCH(SUMPRODUCT((Lektionslista[DAG]=Skolschema[[#Headers],[MÅNDAG]])*(ROUNDDOWN($B7,10)>=ROUNDDOWN(Lektionslista[STARTTID],10))*($B7<=Lektionslista[SLUTTID]),Lektionslista[UNIK]),Lektionslista[UNIK],0),2),0)","v":"MTH-113"},{"$f":"IFERROR(INDEX(Lektionslista[],MATCH(SUMPRODUCT((Lektionslista[DAG]=Skolschema[[#Headers],[TISDAG]])*(ROUNDDOWN($B7,10)>=ROUNDDOWN(Lektionslista[STARTTID],10))*($B7<=Lektionslista[SLUTTID]),Lektionslista[UNIK]),Lektionslista[UNIK],0),2),0)","v":0},{"$f":"IFERROR(INDEX(Lektionslista[],MATCH(SUMPRODUCT((Lektionslista[DAG]=Skolschema[[#Headers],[ONSDAG]])*(ROUNDDOWN($B7,10)>=ROUNDDOWN(Lektionslista[STARTTID],10))*($B7<=Lektionslista[SLUTTID]),Lektionslista[UNIK]),Lektionslista[UNIK],0),2),0)","v":"MTH-113"},{"$f":"IFERROR(INDEX(Lektionslista[],MATCH(SUMPRODUCT((Lektionslista[DAG]=Skolschema[[#Headers],[TORSDAG]])*(ROUNDDOWN($B7,10)>=ROUNDDOWN(Lektionslista[STARTTID],10))*($B7<=Lektionslista[SLUTTID]),Lektionslista[UNIK]),Lektionslista[UNIK],0),2),0)","v":0},{"$f":"IFERROR(INDEX(Lektionslista[],MATCH(SUMPRODUCT((Lektionslista[DAG]=Skolschema[[#Headers],[FREDAG]])*(ROUNDDOWN($B7,10)>=ROUNDDOWN(Lektionslista[STARTTID],10))*($B7<=Lektionslista[SLUTTID]),Lektionslista[UNIK]),Lektionslista[UNIK],0),2),0)","v":"MTH-113"},{"$f":"IFERROR(INDEX(Lektionslista[],MATCH(SUMPRODUCT((Lektionslista[DAG]=Skolschema[[#Headers],[LÖRDAG]])*(ROUNDDOWN($B7,10)>=ROUNDDOWN(Lektionslista[STARTTID],10))*($B7<=Lektionslista[SLUTTID]),Lektionslista[UNIK]),Lektionslista[UNIK],0),2),0)","v":0}]
[null,{"$f":"B7+Ökning","v":"09:00:00"},{"$f":"IFERROR(INDEX(Lektionslista[],MATCH(SUMPRODUCT((Lektionslista[DAG]=Skolschema[[#Headers],[SÖNDAG]])*(ROUNDDOWN($B8,10)>=ROUNDDOWN(Lektionslista[STARTTID],10))*($B8<=Lektionslista[SLUTTID]),Lektionslista[UNIK]),Lektionslista[UNIK],0),2),0)","v":0},{"$f":"IFERROR(INDEX(Lektionslista[],MATCH(SUMPRODUCT((Lektionslista[DAG]=Skolschema[[#Headers],[MÅNDAG]])*(ROUNDDOWN($B8,10)>=ROUNDDOWN(Lektionslista[STARTTID],10))*($B8<=Lektionslista[SLUTTID]),Lektionslista[UNIK]),Lektionslista[UNIK],0),2),0)","v":"MTH-113"},{"$f":"IFERROR(INDEX(Lektionslista[],MATCH(SUMPRODUCT((Lektionslista[DAG]=Skolschema[[#Headers],[TISDAG]])*(ROUNDDOWN($B8,10)>=ROUNDDOWN(Lektionslista[STARTTID],10))*($B8<=Lektionslista[SLUTTID]),Lektionslista[UNIK]),Lektionslista[UNIK],0),2),0)","v":0},{"$f":"IFERROR(INDEX(Lektionslista[],MATCH(SUMPRODUCT((Lektionslista[DAG]=Skolschema[[#Headers],[ONSDAG]])*(ROUNDDOWN($B8,10)>=ROUNDDOWN(Lektionslista[STARTTID],10))*($B8<=Lektionslista[SLUTTID]),Lektionslista[UNIK]),Lektionslista[UNIK],0),2),0)","v":"MTH-113"},{"$f":"IFERROR(INDEX(Lektionslista[],MATCH(SUMPRODUCT((Lektionslista[DAG]=Skolschema[[#Headers],[TORSDAG]])*(ROUNDDOWN($B8,10)>=ROUNDDOWN(Lektionslista[STARTTID],10))*($B8<=Lektionslista[SLUTTID]),Lektionslista[UNIK]),Lektionslista[UNIK],0),2),0)","v":0},{"$f":"IFERROR(INDEX(Lektionslista[],MATCH(SUMPRODUCT((Lektionslista[DAG]=Skolschema[[#Headers],[FREDAG]])*(ROUNDDOWN($B8,10)>=ROUNDDOWN(Lektionslista[STARTTID],10))*($B8<=Lektionslista[SLUTTID]),Lektionslista[UNIK]),Lektionslista[UNIK],0),2),0)","v":"MTH-113"},{"$f":"IFERROR(INDEX(Lektionslista[],MATCH(SUMPRODUCT((Lektionslista[DAG]=Skolschema[[#Headers],[LÖRDAG]])*(ROUNDDOWN($B8,10)>=ROUNDDOWN(Lektionslista[STARTTID],10))*($B8<=Lektionslista[SLUTTID]),Lektionslista[UNIK]),Lektionslista[UNIK],0),2),0)","v":0}]
[null,"09:15:00",{"$f":"IFERROR(INDEX(Lektionslista[],MATCH(SUMPRODUCT((Lektionslista[DAG]=Skolschema[[#Headers],[SÖNDAG]])*(ROUNDDOWN($B9,10)>=ROUNDDOWN(Lektionslista[STARTTID],10))*($B9<=Lektionslista[SLUTTID]),Lektionslista[UNIK]),Lektionslista[UNIK],0),2),0)","v":0},{"$f":"IFERROR(INDEX(Lektionslista[],MATCH(SUMPRODUCT((Lektionslista[DAG]=Skolschema[[#Headers],[MÅNDAG]])*(ROUNDDOWN($B9,10)>=ROUNDDOWN(Lektionslista[STARTTID],10))*($B9<=Lektionslista[SLUTTID]),Lektionslista[UNIK]),Lektionslista[UNIK],0),2),0)","v":"MTH-113"},{"$f":"IFERROR(INDEX(Lektionslista[],MATCH(SUMPRODUCT((Lektionslista[DAG]=Skolschema[[#Headers],[TISDAG]])*(ROUNDDOWN($B9,10)>=ROUNDDOWN(Lektionslista[STARTTID],10))*($B9<=Lektionslista[SLUTTID]),Lektionslista[UNIK]),Lektionslista[UNIK],0),2),0)","v":0},{"$f":"IFERROR(INDEX(Lektionslista[],MATCH(SUMPRODUCT((Lektionslista[DAG]=Skolschema[[#Headers],[ONSDAG]])*(ROUNDDOWN($B9,10)>=ROUNDDOWN(Lektionslista[STARTTID],10))*($B9<=Lektionslista[SLUTTID]),Lektionslista[UNIK]),Lektionslista[UNIK],0),2),0)","v":"MTH-113"},{"$f":"IFERROR(INDEX(Lektionslista[],MATCH(SUMPRODUCT((Lektionslista[DAG]=Skolschema[[#Headers],[TORSDAG]])*(ROUNDDOWN($B9,10)>=ROUNDDOWN(Lektionslista[STARTTID],10))*($B9<=Lektionslista[SLUTTID]),Lektionslista[UNIK]),Lektionslista[UNIK],0),2),0)","v":0},{"$f":"IFERROR(INDEX(Lektionslista[],MATCH(SUMPRODUCT((Lektionslista[DAG]=Skolschema[[#Headers],[FREDAG]])*(ROUNDDOWN($B9,10)>=ROUNDDOWN(Lektionslista[STARTTID],10))*($B9<=Lektionslista[SLUTTID]),Lektionslista[UNIK]),Lektionslista[UNIK],0),2),0)","v":"MTH-113"},{"$f":"IFERROR(INDEX(Lektionslista[],MATCH(SUMPRODUCT((Lektionslista[DAG]=Skolschema[[#Headers],[LÖRDAG]])*(ROUNDDOWN($B9,10)>=ROUNDDOWN(Lektionslista[STARTTID],10))*($B9<=Lektionslista[SLUTTID]),Lektionslista[UNIK]),Lektionslista[UNIK],0),2),0)","v":0}]
[null,{"$f":"B9+Ökning","v":"09:30:00"},{"$f":"IFERROR(INDEX(Lektionslista[],MATCH(SUMPRODUCT((Lektionslista[DAG]=Skolschema[[#Headers],[SÖNDAG]])*(ROUNDDOWN($B10,10)>=ROUNDDOWN(Lektionslista[STARTTID],10))*($B10<=Lektionslista[SLUTTID]),Lektionslista[UNIK]),Lektionslista[UNIK],0),2),0)","v":0},{"$f":"IFERROR(INDEX(Lektionslista[],MATCH(SUMPRODUCT((Lektionslista[DAG]=Skolschema[[#Headers],[MÅNDAG]])*(ROUNDDOWN($B10,10)>=ROUNDDOWN(Lektionslista[STARTTID],10))*($B10<=Lektionslista[SLUTTID]),Lektionslista[UNIK]),Lektionslista[UNIK],0),2),0)","v":0},{"$f":"IFERROR(INDEX(Lektionslista[],MATCH(SUMPRODUCT((Lektionslista[DAG]=Skolschema[[#Headers],[TISDAG]])*(ROUNDDOWN($B10,10)>=ROUNDDOWN(Lektionslista[STARTTID],10))*($B10<=Lektionslista[SLUTTID]),Lektionslista[UNIK]),Lektionslista[UNIK],0),2),0)","v":0},{"$f":"IFERROR(INDEX(Lektionslista[],MATCH(SUMPRODUCT((Lektionslista[DAG]=Skolschema[[#Headers],[ONSDAG]])*(ROUNDDOWN($B10,10)>=ROUNDDOWN(Lektionslista[STARTTID],10))*($B10<=Lektionslista[SLUTTID]),Lektionslista[UNIK]),Lektionslista[UNIK],0),2),0)","v":0},{"$f":"IFERROR(INDEX(Lektionslista[],MATCH(SUMPRODUCT((Lektionslista[DAG]=Skolschema[[#Headers],[TORSDAG]])*(ROUNDDOWN($B10,10)>=ROUNDDOWN(Lektionslista[STARTTID],10))*($B10<=Lektionslista[SLUTTID]),Lektionslista[UNIK]),Lektionslista[UNIK],0),2),0)","v":0},{"$f":"IFERROR(INDEX(Lektionslista[],MATCH(SUMPRODUCT((Lektionslista[DAG]=Skolschema[[#Headers],[FREDAG]])*(ROUNDDOWN($B10,10)>=ROUNDDOWN(Lektionslista[STARTTID],10))*($B10<=Lektionslista[SLUTTID]),Lektionslista[UNIK]),Lektionslista[UNIK],0),2),0)","v":0},{"$f":"IFERROR(INDEX(Lektionslista[],MATCH(SUMPRODUCT((Lektionslista[DAG]=Skolschema[[#Headers],[LÖRDAG]])*(ROUNDDOWN($B10,10)>=ROUNDDOWN(Lektionslista[STARTTID],10))*($B10<=Lektionslista[SLUTTID]),Lektionslista[UNIK]),Lektionslista[UNIK],0),2),0)","v":0}]
[null,"09:45:00",{"$f":"IFERROR(INDEX(Lektionslista[],MATCH(SUMPRODUCT((Lektionslista[DAG]=Skolschema[[#Headers],[SÖNDAG]])*(ROUNDDOWN($B11,10)>=ROUNDDOWN(Lektionslista[STARTTID],10))*($B11<=Lektionslista[SLUTTID]),Lektionslista[UNIK]),Lektionslista[UNIK],0),2),0)","v":0},{"$f":"IFERROR(INDEX(Lektionslista[],MATCH(SUMPRODUCT((Lektionslista[DAG]=Skolschema[[#Headers],[MÅNDAG]])*(ROUNDDOWN($B11,10)>=ROUNDDOWN(Lektionslista[STARTTID],10))*($B11<=Lektionslista[SLUTTID]),Lektionslista[UNIK]),Lektionslista[UNIK],0),2),0)","v":0},{"$f":"IFERROR(INDEX(Lektionslista[],MATCH(SUMPRODUCT((Lektionslista[DAG]=Skolschema[[#Headers],[TISDAG]])*(ROUNDDOWN($B11,10)>=ROUNDDOWN(Lektionslista[STARTTID],10))*($B11<=Lektionslista[SLUTTID]),Lektionslista[UNIK]),Lektionslista[UNIK],0),2),0)","v":0},{"$f":"IFERROR(INDEX(Lektionslista[],MATCH(SUMPRODUCT((Lektionslista[DAG]=Skolschema[[#Headers],[ONSDAG]])*(ROUNDDOWN($B11,10)>=ROUNDDOWN(Lektionslista[STARTTID],10))*($B11<=Lektionslista[SLUTTID]),Lektionslista[UNIK]),Lektionslista[UNIK],0),2),0)","v":0},{"$f":"IFERROR(INDEX(Lektionslista[],MATCH(SUMPRODUCT((Lektionslista[DAG]=Skolschema[[#Headers],[TORSDAG]])*(ROUNDDOWN($B11,10)>=ROUNDDOWN(Lektionslista[STARTTID],10))*($B11<=Lektionslista[SLUTTID]),Lektionslista[UNIK]),Lektionslista[UNIK],0),2),0)","v":0},{"$f":"IFERROR(INDEX(Lektionslista[],MATCH(SUMPRODUCT((Lektionslista[DAG]=Skolschema[[#Headers],[FREDAG]])*(ROUNDDOWN($B11,10)>=ROUNDDOWN(Lektionslista[STARTTID],10))*($B11<=Lektionslista[SLUTTID]),Lektionslista[UNIK]),Lektionslista[UNIK],0),2),0)","v":0},{"$f":"IFERROR(INDEX(Lektionslista[],MATCH(SUMPRODUCT((Lektionslista[DAG]=Skolschema[[#Headers],[LÖRDAG]])*(ROUNDDOWN($B11,10)>=ROUNDDOWN(Lektionslista[STARTTID],10))*($B11<=Lektionslista[SLUTTID]),Lektionslista[UNIK]),Lektionslista[UNIK],0),2),0)","v":0}]
[null,"10:00:00",{"$f":"IFERROR(INDEX(Lektionslista[],MATCH(SUMPRODUCT((Lektionslista[DAG]=Skolschema[[#Headers],[SÖNDAG]])*(ROUNDDOWN($B12,10)>=ROUNDDOWN(Lektionslista[STARTTID],10))*($B12<=Lektionslista[SLUTTID]),Lektionslista[UNIK]),Lektionslista[UNIK],0),2),0)","v":0},{"$f":"IFERROR(INDEX(Lektionslista[],MATCH(SUMPRODUCT((Lektionslista[DAG]=Skolschema[[#Headers],[MÅNDAG]])*(ROUNDDOWN($B12,10)>=ROUNDDOWN(Lektionslista[STARTTID],10))*($B12<=Lektionslista[SLUTTID]),Lektionslista[UNIK]),Lektionslista[UNIK],0),2),0)","v":0},{"$f":"IFERROR(INDEX(Lektionslista[],MATCH(SUMPRODUCT((Lektionslista[DAG]=Skolschema[[#Headers],[TISDAG]])*(ROUNDDOWN($B12,10)>=ROUNDDOWN(Lektionslista[STARTTID],10))*($B12<=Lektionslista[SLUTTID]),Lektionslista[UNIK]),Lektionslista[UNIK],0),2),0)","v":0},{"$f":"IFERROR(INDEX(Lektionslista[],MATCH(SUMPRODUCT((Lektionslista[DAG]=Skolschema[[#Headers],[ONSDAG]])*(ROUNDDOWN($B12,10)>=ROUNDDOWN(Lektionslista[STARTTID],10))*($B12<=Lektionslista[SLUTTID]),Lektionslista[UNIK]),Lektionslista[UNIK],0),2),0)","v":0},{"$f":"IFERROR(INDEX(Lektionslista[],MATCH(SUMPRODUCT((Lektionslista[DAG]=Skolschema[[#Headers],[TORSDAG]])*(ROUNDDOWN($B12,10)>=ROUNDDOWN(Lektionslista[STARTTID],10))*($B12<=Lektionslista[SLUTTID]),Lektionslista[UNIK]),Lektionslista[UNIK],0),2),0)","v":0},{"$f":"IFERROR(INDEX(Lektionslista[],MATCH(SUMPRODUCT((Lektionslista[DAG]=Skolschema[[#Headers],[FREDAG]])*(ROUNDDOWN($B12,10)>=ROUNDDOWN(Lektionslista[STARTTID],10))*($B12<=Lektionslista[SLUTTID]),Lektionslista[UNIK]),Lektionslista[UNIK],0),2),0)","v":0},{"$f":"IFERROR(INDEX(Lektionslista[],MATCH(SUMPRODUCT((Lektionslista[DAG]=Skolschema[[#Headers],[LÖRDAG]])*(ROUNDDOWN($B12,10)>=ROUNDDOWN(Lektionslista[STARTTID],10))*($B12<=Lektionslista[SLUTTID]),Lektionslista[UNIK]),Lektionslista[UNIK],0),2),0)","v":0}]
[null,"10:15:00",{"$f":"IFERROR(INDEX(Lektionslista[],MATCH(SUMPRODUCT((Lektionslista[DAG]=Skolschema[[#Headers],[SÖNDAG]])*(ROUNDDOWN($B13,10)>=ROUNDDOWN(Lektionslista[STARTTID],10))*($B13<=Lektionslista[SLUTTID]),Lektionslista[UNIK]),Lektionslista[UNIK],0),2),0)","v":0},{"$f":"IFERROR(INDEX(Lektionslista[],MATCH(SUMPRODUCT((Lektionslista[DAG]=Skolschema[[#Headers],[MÅNDAG]])*(ROUNDDOWN($B13,10)>=ROUNDDOWN(Lektionslista[STARTTID],10))*($B13<=Lektionslista[SLUTTID]),Lektionslista[UNIK]),Lektionslista[UNIK],0),2),0)","v":0},{"$f":"IFERROR(INDEX(Lektionslista[],MATCH(SUMPRODUCT((Lektionslista[DAG]=Skolschema[[#Headers],[TISDAG]])*(ROUNDDOWN($B13,10)>=ROUNDDOWN(Lektionslista[STARTTID],10))*($B13<=Lektionslista[SLUTTID]),Lektionslista[UNIK]),Lektionslista[UNIK],0),2),0)","v":0},{"$f":"IFERROR(INDEX(Lektionslista[],MATCH(SUMPRODUCT((Lektionslista[DAG]=Skolschema[[#Headers],[ONSDAG]])*(ROUNDDOWN($B13,10)>=ROUNDDOWN(Lektionslista[STARTTID],10))*($B13<=Lektionslista[SLUTTID]),Lektionslista[UNIK]),Lektionslista[UNIK],0),2),0)","v":0},{"$f":"IFERROR(INDEX(Lektionslista[],MATCH(SUMPRODUCT((Lektionslista[DAG]=Skolschema[[#Headers],[TORSDAG]])*(ROUNDDOWN($B13,10)>=ROUNDDOWN(Lektionslista[STARTTID],10))*($B13<=Lektionslista[SLUTTID]),Lektionslista[UNIK]),Lektionslista[UNIK],0),2),0)","v":0},{"$f":"IFERROR(INDEX(Lektionslista[],MATCH(SUMPRODUCT((Lektionslista[DAG]=Skolschema[[#Headers],[FREDAG]])*(ROUNDDOWN($B13,10)>=ROUNDDOWN(Lektionslista[STARTTID],10))*($B13<=Lektionslista[SLUTTID]),Lektionslista[UNIK]),Lektionslista[UNIK],0),2),0)","v":0},{"$f":"IFERROR(INDEX(Lektionslista[],MATCH(SUMPRODUCT((Lektionslista[DAG]=Skolschema[[#Headers],[LÖRDAG]])*(ROUNDDOWN($B13,10)>=ROUNDDOWN(Lektionslista[STARTTID],10))*($B13<=Lektionslista[SLUTTID]),Lektionslista[UNIK]),Lektionslista[UNIK],0),2),0)","v":0}]
[null,"10:30:00",{"$f":"IFERROR(INDEX(Lektionslista[],MATCH(SUMPRODUCT((Lektionslista[DAG]=Skolschema[[#Headers],[SÖNDAG]])*(ROUNDDOWN($B14,10)>=ROUNDDOWN(Lektionslista[STARTTID],10))*($B14<=Lektionslista[SLUTTID]),Lektionslista[UNIK]),Lektionslista[UNIK],0),2),0)","v":0},{"$f":"IFERROR(INDEX(Lektionslista[],MATCH(SUMPRODUCT((Lektionslista[DAG]=Skolschema[[#Headers],[MÅNDAG]])*(ROUNDDOWN($B14,10)>=ROUNDDOWN(Lektionslista[STARTTID],10))*($B14<=Lektionslista[SLUTTID]),Lektionslista[UNIK]),Lektionslista[UNIK],0),2),0)","v":0},{"$f":"IFERROR(INDEX(Lektionslista[],MATCH(SUMPRODUCT((Lektionslista[DAG]=Skolschema[[#Headers],[TISDAG]])*(ROUNDDOWN($B14,10)>=ROUNDDOWN(Lektionslista[STARTTID],10))*($B14<=Lektionslista[SLUTTID]),Lektionslista[UNIK]),Lektionslista[UNIK],0),2),0)","v":0},{"$f":"IFERROR(INDEX(Lektionslista[],MATCH(SUMPRODUCT((Lektionslista[DAG]=Skolschema[[#Headers],[ONSDAG]])*(ROUNDDOWN($B14,10)>=ROUNDDOWN(Lektionslista[STARTTID],10))*($B14<=Lektionslista[SLUTTID]),Lektionslista[UNIK]),Lektionslista[UNIK],0),2),0)","v":0},{"$f":"IFERROR(INDEX(Lektionslista[],MATCH(SUMPRODUCT((Lektionslista[DAG]=Skolschema[[#Headers],[TORSDAG]])*(ROUNDDOWN($B14,10)>=ROUNDDOWN(Lektionslista[STARTTID],10))*($B14<=Lektionslista[SLUTTID]),Lektionslista[UNIK]),Lektionslista[UNIK],0),2),0)","v":0},{"$f":"IFERROR(INDEX(Lektionslista[],MATCH(SUMPRODUCT((Lektionslista[DAG]=Skolschema[[#Headers],[FREDAG]])*(ROUNDDOWN($B14,10)>=ROUNDDOWN(Lektionslista[STARTTID],10))*($B14<=Lektionslista[SLUTTID]),Lektionslista[UNIK]),Lektionslista[UNIK],0),2),0)","v":0},{"$f":"IFERROR(INDEX(Lektionslista[],MATCH(SUMPRODUCT((Lektionslista[DAG]=Skolschema[[#Headers],[LÖRDAG]])*(ROUNDDOWN($B14,10)>=ROUNDDOWN(Lektionslista[STARTTID],10))*($B14<=Lektionslista[SLUTTID]),Lektionslista[UNIK]),Lektionslista[UNIK],0),2),0)","v":0}]
[null,"10:45:00",{"$f":"IFERROR(INDEX(Lektionslista[],MATCH(SUMPRODUCT((Lektionslista[DAG]=Skolschema[[#Headers],[SÖNDAG]])*(ROUNDDOWN($B15,10)>=ROUNDDOWN(Lektionslista[STARTTID],10))*($B15<=Lektionslista[SLUTTID]),Lektionslista[UNIK]),Lektionslista[UNIK],0),2),0)","v":0},{"$f":"IFERROR(INDEX(Lektionslista[],MATCH(SUMPRODUCT((Lektionslista[DAG]=Skolschema[[#Headers],[MÅNDAG]])*(ROUNDDOWN($B15,10)>=ROUNDDOWN(Lektionslista[STARTTID],10))*($B15<=Lektionslista[SLUTTID]),Lektionslista[UNIK]),Lektionslista[UNIK],0),2),0)","v":0},{"$f":"IFERROR(INDEX(Lektionslista[],MATCH(SUMPRODUCT((Lektionslista[DAG]=Skolschema[[#Headers],[TISDAG]])*(ROUNDDOWN($B15,10)>=ROUNDDOWN(Lektionslista[STARTTID],10))*($B15<=Lektionslista[SLUTTID]),Lektionslista[UNIK]),Lektionslista[UNIK],0),2),0)","v":0},{"$f":"IFERROR(INDEX(Lektionslista[],MATCH(SUMPRODUCT((Lektionslista[DAG]=Skolschema[[#Headers],[ONSDAG]])*(ROUNDDOWN($B15,10)>=ROUNDDOWN(Lektionslista[STARTTID],10))*($B15<=Lektionslista[SLUTTID]),Lektionslista[UNIK]),Lektionslista[UNIK],0),2),0)","v":0},{"$f":"IFERROR(INDEX(Lektionslista[],MATCH(SUMPRODUCT((Lektionslista[DAG]=Skolschema[[#Headers],[TORSDAG]])*(ROUNDDOWN($B15,10)>=ROUNDDOWN(Lektionslista[STARTTID],10))*($B15<=Lektionslista[SLUTTID]),Lektionslista[UNIK]),Lektionslista[UNIK],0),2),0)","v":0},{"$f":"IFERROR(INDEX(Lektionslista[],MATCH(SUMPRODUCT((Lektionslista[DAG]=Skolschema[[#Headers],[FREDAG]])*(ROUNDDOWN($B15,10)>=ROUNDDOWN(Lektionslista[STARTTID],10))*($B15<=Lektionslista[SLUTTID]),Lektionslista[UNIK]),Lektionslista[UNIK],0),2),0)","v":0},{"$f":"IFERROR(INDEX(Lektionslista[],MATCH(SUMPRODUCT((Lektionslista[DAG]=Skolschema[[#Headers],[LÖRDAG]])*(ROUNDDOWN($B15,10)>=ROUNDDOWN(Lektionslista[STARTTID],10))*($B15<=Lektionslista[SLUTTID]),Lektionslista[UNIK]),Lektionslista[UNIK],0),2),0)","v":0}]
[null,"11:00:00",{"$f":"IFERROR(INDEX(Lektionslista[],MATCH(SUMPRODUCT((Lektionslista[DAG]=Skolschema[[#Headers],[SÖNDAG]])*(ROUNDDOWN($B16,10)>=ROUNDDOWN(Lektionslista[STARTTID],10))*($B16<=Lektionslista[SLUTTID]),Lektionslista[UNIK]),Lektionslista[UNIK],0),2),0)","v":0},{"$f":"IFERROR(INDEX(Lektionslista[],MATCH(SUMPRODUCT((Lektionslista[DAG]=Skolschema[[#Headers],[MÅNDAG]])*(ROUNDDOWN($B16,10)>=ROUNDDOWN(Lektionslista[STARTTID],10))*($B16<=Lektionslista[SLUTTID]),Lektionslista[UNIK]),Lektionslista[UNIK],0),2),0)","v":0},{"$f":"IFERROR(INDEX(Lektionslista[],MATCH(SUMPRODUCT((Lektionslista[DAG]=Skolschema[[#Headers],[TISDAG]])*(ROUNDDOWN($B16,10)>=ROUNDDOWN(Lektionslista[STARTTID],10))*($B16<=Lektionslista[SLUTTID]),Lektionslista[UNIK]),Lektionslista[UNIK],0),2),0)","v":"HPE-295"},{"$f":"IFERROR(INDEX(Lektionslista[],MATCH(SUMPRODUCT((Lektionslista[DAG]=Skolschema[[#Headers],[ONSDAG]])*(ROUNDDOWN($B16,10)>=ROUNDDOWN(Lektionslista[STARTTID],10))*($B16<=Lektionslista[SLUTTID]),Lektionslista[UNIK]),Lektionslista[UNIK],0),2),0)","v":0},{"$f":"IFERROR(INDEX(Lektionslista[],MATCH(SUMPRODUCT((Lektionslista[DAG]=Skolschema[[#Headers],[TORSDAG]])*(ROUNDDOWN($B16,10)>=ROUNDDOWN(Lektionslista[STARTTID],10))*($B16<=Lektionslista[SLUTTID]),Lektionslista[UNIK]),Lektionslista[UNIK],0),2),0)","v":"HPE-295"},{"$f":"IFERROR(INDEX(Lektionslista[],MATCH(SUMPRODUCT((Lektionslista[DAG]=Skolschema[[#Headers],[FREDAG]])*(ROUNDDOWN($B16,10)>=ROUNDDOWN(Lektionslista[STARTTID],10))*($B16<=Lektionslista[SLUTTID]),Lektionslista[UNIK]),Lektionslista[UNIK],0),2),0)","v":0},{"$f":"IFERROR(INDEX(Lektionslista[],MATCH(SUMPRODUCT((Lektionslista[DAG]=Skolschema[[#Headers],[LÖRDAG]])*(ROUNDDOWN($B16,10)>=ROUNDDOWN(Lektionslista[STARTTID],10))*($B16<=Lektionslista[SLUTTID]),Lektionslista[UNIK]),Lektionslista[UNIK],0),2),0)","v":0}]
[null,"11:15:00",{"$f":"IFERROR(INDEX(Lektionslista[],MATCH(SUMPRODUCT((Lektionslista[DAG]=Skolschema[[#Headers],[SÖNDAG]])*(ROUNDDOWN($B17,10)>=ROUNDDOWN(Lektionslista[STARTTID],10))*($B17<=Lektionslista[SLUTTID]),Lektionslista[UNIK]),Lektionslista[UNIK],0),2),0)","v":0},{"$f":"IFERROR(INDEX(Lektionslista[],MATCH(SUMPRODUCT((Lektionslista[DAG]=Skolschema[[#Headers],[MÅNDAG]])*(ROUNDDOWN($B17,10)>=ROUNDDOWN(Lektionslista[STARTTID],10))*($B17<=Lektionslista[SLUTTID]),Lektionslista[UNIK]),Lektionslista[UNIK],0),2),0)","v":0},{"$f":"IFERROR(INDEX(Lektionslista[],MATCH(SUMPRODUCT((Lektionslista[DAG]=Skolschema[[#Headers],[TISDAG]])*(ROUNDDOWN($B17,10)>=ROUNDDOWN(Lektionslista[STARTTID],10))*($B17<=Lektionslista[SLUTTID]),Lektionslista[UNIK]),Lektionslista[UNIK],0),2),0)","v":"HPE-295"},{"$f":"IFERROR(INDEX(Lektionslista[],MATCH(SUMPRODUCT((Lektionslista[DAG]=Skolschema[[#Headers],[ONSDAG]])*(ROUNDDOWN($B17,10)>=ROUNDDOWN(Lektionslista[STARTTID],10))*($B17<=Lektionslista[SLUTTID]),Lektionslista[UNIK]),Lektionslista[UNIK],0),2),0)","v":0},{"$f":"IFERROR(INDEX(Lektionslista[],MATCH(SUMPRODUCT((Lektionslista[DAG]=Skolschema[[#Headers],[TORSDAG]])*(ROUNDDOWN($B17,10)>=ROUNDDOWN(Lektionslista[STARTTID],10))*($B17<=Lektionslista[SLUTTID]),Lektionslista[UNIK]),Lektionslista[UNIK],0),2),0)","v":"HPE-295"},{"$f":"IFERROR(INDEX(Lektionslista[],MATCH(SUMPRODUCT((Lektionslista[DAG]=Skolschema[[#Headers],[FREDAG]])*(ROUNDDOWN($B17,10)>=ROUNDDOWN(Lektionslista[STARTTID],10))*($B17<=Lektionslista[SLUTTID]),Lektionslista[UNIK]),Lektionslista[UNIK],0),2),0)","v":0},{"$f":"IFERROR(INDEX(Lektionslista[],MATCH(SUMPRODUCT((Lektionslista[DAG]=Skolschema[[#Headers],[LÖRDAG]])*(ROUNDDOWN($B17,10)>=ROUNDDOWN(Lektionslista[STARTTID],10))*($B17<=Lektionslista[SLUTTID]),Lektionslista[UNIK]),Lektionslista[UNIK],0),2),0)","v":0}]
[null,"11:30:00",{"$f":"IFERROR(INDEX(Lektionslista[],MATCH(SUMPRODUCT((Lektionslista[DAG]=Skolschema[[#Headers],[SÖNDAG]])*(ROUNDDOWN($B18,10)>=ROUNDDOWN(Lektionslista[STARTTID],10))*($B18<=Lektionslista[SLUTTID]),Lektionslista[UNIK]),Lektionslista[UNIK],0),2),0)","v":0},{"$f":"IFERROR(INDEX(Lektionslista[],MATCH(SUMPRODUCT((Lektionslista[DAG]=Skolschema[[#Headers],[MÅNDAG]])*(ROUNDDOWN($B18,10)>=ROUNDDOWN(Lektionslista[STARTTID],10))*($B18<=Lektionslista[SLUTTID]),Lektionslista[UNIK]),Lektionslista[UNIK],0),2),0)","v":0},{"$f":"IFERROR(INDEX(Lektionslista[],MATCH(SUMPRODUCT((Lektionslista[DAG]=Skolschema[[#Headers],[TISDAG]])*(ROUNDDOWN($B18,10)>=ROUNDDOWN(Lektionslista[STARTTID],10))*($B18<=Lektionslista[SLUTTID]),Lektionslista[UNIK]),Lektionslista[UNIK],0),2),0)","v":"HPE-295"},{"$f":"IFERROR(INDEX(Lektionslista[],MATCH(SUMPRODUCT((Lektionslista[DAG]=Skolschema[[#Headers],[ONSDAG]])*(ROUNDDOWN($B18,10)>=ROUNDDOWN(Lektionslista[STARTTID],10))*($B18<=Lektionslista[SLUTTID]),Lektionslista[UNIK]),Lektionslista[UNIK],0),2),0)","v":0},{"$f":"IFERROR(INDEX(Lektionslista[],MATCH(SUMPRODUCT((Lektionslista[DAG]=Skolschema[[#Headers],[TORSDAG]])*(ROUNDDOWN($B18,10)>=ROUNDDOWN(Lektionslista[STARTTID],10))*($B18<=Lektionslista[SLUTTID]),Lektionslista[UNIK]),Lektionslista[UNIK],0),2),0)","v":"HPE-295"},{"$f":"IFERROR(INDEX(Lektionslista[],MATCH(SUMPRODUCT((Lektionslista[DAG]=Skolschema[[#Headers],[FREDAG]])*(ROUNDDOWN($B18,10)>=ROUNDDOWN(Lektionslista[STARTTID],10))*($B18<=Lektionslista[SLUTTID]),Lektionslista[UNIK]),Lektionslista[UNIK],0),2),0)","v":0},{"$f":"IFERROR(INDEX(Lektionslista[],MATCH(SUMPRODUCT((Lektionslista[DAG]=Skolschema[[#Headers],[LÖRDAG]])*(ROUNDDOWN($B18,10)>=ROUNDDOWN(Lektionslista[STARTTID],10))*($B18<=Lektionslista[SLUTTID]),Lektionslista[UNIK]),Lektionslista[UNIK],0),2),0)","v":0}]
[null,"11:45:00",{"$f":"IFERROR(INDEX(Lektionslista[],MATCH(SUMPRODUCT((Lektionslista[DAG]=Skolschema[[#Headers],[SÖNDAG]])*(ROUNDDOWN($B19,10)>=ROUNDDOWN(Lektionslista[STARTTID],10))*($B19<=Lektionslista[SLUTTID]),Lektionslista[UNIK]),Lektionslista[UNIK],0),2),0)","v":0},{"$f":"IFERROR(INDEX(Lektionslista[],MATCH(SUMPRODUCT((Lektionslista[DAG]=Skolschema[[#Headers],[MÅNDAG]])*(ROUNDDOWN($B19,10)>=ROUNDDOWN(Lektionslista[STARTTID],10))*($B19<=Lektionslista[SLUTTID]),Lektionslista[UNIK]),Lektionslista[UNIK],0),2),0)","v":0},{"$f":"IFERROR(INDEX(Lektionslista[],MATCH(SUMPRODUCT((Lektionslista[DAG]=Skolschema[[#Headers],[TISDAG]])*(ROUNDDOWN($B19,10)>=ROUNDDOWN(Lektionslista[STARTTID],10))*($B19<=Lektionslista[SLUTTID]),Lektionslista[UNIK]),Lektionslista[UNIK],0),2),0)","v":"HPE-295"},{"$f":"IFERROR(INDEX(Lektionslista[],MATCH(SUMPRODUCT((Lektionslista[DAG]=Skolschema[[#Headers],[ONSDAG]])*(ROUNDDOWN($B19,10)>=ROUNDDOWN(Lektionslista[STARTTID],10))*($B19<=Lektionslista[SLUTTID]),Lektionslista[UNIK]),Lektionslista[UNIK],0),2),0)","v":0},{"$f":"IFERROR(INDEX(Lektionslista[],MATCH(SUMPRODUCT((Lektionslista[DAG]=Skolschema[[#Headers],[TORSDAG]])*(ROUNDDOWN($B19,10)>=ROUNDDOWN(Lektionslista[STARTTID],10))*($B19<=Lektionslista[SLUTTID]),Lektionslista[UNIK]),Lektionslista[UNIK],0),2),0)","v":"HPE-295"},{"$f":"IFERROR(INDEX(Lektionslista[],MATCH(SUMPRODUCT((Lektionslista[DAG]=Skolschema[[#Headers],[FREDAG]])*(ROUNDDOWN($B19,10)>=ROUNDDOWN(Lektionslista[STARTTID],10))*($B19<=Lektionslista[SLUTTID]),Lektionslista[UNIK]),Lektionslista[UNIK],0),2),0)","v":0},{"$f":"IFERROR(INDEX(Lektionslista[],MATCH(SUMPRODUCT((Lektionslista[DAG]=Skolschema[[#Headers],[LÖRDAG]])*(ROUNDDOWN($B19,10)>=ROUNDDOWN(Lektionslista[STARTTID],10))*($B19<=Lektionslista[SLUTTID]),Lektionslista[UNIK]),Lektionslista[UNIK],0),2),0)","v":0}]
[null,"12:00:00",{"$f":"IFERROR(INDEX(Lektionslista[],MATCH(SUMPRODUCT((Lektionslista[DAG]=Skolschema[[#Headers],[SÖNDAG]])*(ROUNDDOWN($B20,10)>=ROUNDDOWN(Lektionslista[STARTTID],10))*($B20<=Lektionslista[SLUTTID]),Lektionslista[UNIK]),Lektionslista[UNIK],0),2),0)","v":0},{"$f":"IFERROR(INDEX(Lektionslista[],MATCH(SUMPRODUCT((Lektionslista[DAG]=Skolschema[[#Headers],[MÅNDAG]])*(ROUNDDOWN($B20,10)>=ROUNDDOWN(Lektionslista[STARTTID],10))*($B20<=Lektionslista[SLUTTID]),Lektionslista[UNIK]),Lektionslista[UNIK],0),2),0)","v":0},{"$f":"IFERROR(INDEX(Lektionslista[],MATCH(SUMPRODUCT((Lektionslista[DAG]=Skolschema[[#Headers],[TISDAG]])*(ROUNDDOWN($B20,10)>=ROUNDDOWN(Lektionslista[STARTTID],10))*($B20<=Lektionslista[SLUTTID]),Lektionslista[UNIK]),Lektionslista[UNIK],0),2),0)","v":"HPE-295"},{"$f":"IFERROR(INDEX(Lektionslista[],MATCH(SUMPRODUCT((Lektionslista[DAG]=Skolschema[[#Headers],[ONSDAG]])*(ROUNDDOWN($B20,10)>=ROUNDDOWN(Lektionslista[STARTTID],10))*($B20<=Lektionslista[SLUTTID]),Lektionslista[UNIK]),Lektionslista[UNIK],0),2),0)","v":0},{"$f":"IFERROR(INDEX(Lektionslista[],MATCH(SUMPRODUCT((Lektionslista[DAG]=Skolschema[[#Headers],[TORSDAG]])*(ROUNDDOWN($B20,10)>=ROUNDDOWN(Lektionslista[STARTTID],10))*($B20<=Lektionslista[SLUTTID]),Lektionslista[UNIK]),Lektionslista[UNIK],0),2),0)","v":"HPE-295"},{"$f":"IFERROR(INDEX(Lektionslista[],MATCH(SUMPRODUCT((Lektionslista[DAG]=Skolschema[[#Headers],[FREDAG]])*(ROUNDDOWN($B20,10)>=ROUNDDOWN(Lektionslista[STARTTID],10))*($B20<=Lektionslista[SLUTTID]),Lektionslista[UNIK]),Lektionslista[UNIK],0),2),0)","v":0},{"$f":"IFERROR(INDEX(Lektionslista[],MATCH(SUMPRODUCT((Lektionslista[DAG]=Skolschema[[#Headers],[LÖRDAG]])*(ROUNDDOWN($B20,10)>=ROUNDDOWN(Lektionslista[STARTTID],10))*($B20<=Lektionslista[SLUTTID]),Lektionslista[UNIK]),Lektionslista[UNIK],0),2),0)","v":0}]
[null,"12:15:00",{"$f":"IFERROR(INDEX(Lektionslista[],MATCH(SUMPRODUCT((Lektionslista[DAG]=Skolschema[[#Headers],[SÖNDAG]])*(ROUNDDOWN($B21,10)>=ROUNDDOWN(Lektionslista[STARTTID],10))*($B21<=Lektionslista[SLUTTID]),Lektionslista[UNIK]),Lektionslista[UNIK],0),2),0)","v":0},{"$f":"IFERROR(INDEX(Lektionslista[],MATCH(SUMPRODUCT((Lektionslista[DAG]=Skolschema[[#Headers],[MÅNDAG]])*(ROUNDDOWN($B21,10)>=ROUNDDOWN(Lektionslista[STARTTID],10))*($B21<=Lektionslista[SLUTTID]),Lektionslista[UNIK]),Lektionslista[UNIK],0),2),0)","v":0},{"$f":"IFERROR(INDEX(Lektionslista[],MATCH(SUMPRODUCT((Lektionslista[DAG]=Skolschema[[#Headers],[TISDAG]])*(ROUNDDOWN($B21,10)>=ROUNDDOWN(Lektionslista[STARTTID],10))*($B21<=Lektionslista[SLUTTID]),Lektionslista[UNIK]),Lektionslista[UNIK],0),2),0)","v":0},{"$f":"IFERROR(INDEX(Lektionslista[],MATCH(SUMPRODUCT((Lektionslista[DAG]=Skolschema[[#Headers],[ONSDAG]])*(ROUNDDOWN($B21,10)>=ROUNDDOWN(Lektionslista[STARTTID],10))*($B21<=Lektionslista[SLUTTID]),Lektionslista[UNIK]),Lektionslista[UNIK],0),2),0)","v":0},{"$f":"IFERROR(INDEX(Lektionslista[],MATCH(SUMPRODUCT((Lektionslista[DAG]=Skolschema[[#Headers],[TORSDAG]])*(ROUNDDOWN($B21,10)>=ROUNDDOWN(Lektionslista[STARTTID],10))*($B21<=Lektionslista[SLUTTID]),Lektionslista[UNIK]),Lektionslista[UNIK],0),2),0)","v":0},{"$f":"IFERROR(INDEX(Lektionslista[],MATCH(SUMPRODUCT((Lektionslista[DAG]=Skolschema[[#Headers],[FREDAG]])*(ROUNDDOWN($B21,10)>=ROUNDDOWN(Lektionslista[STARTTID],10))*($B21<=Lektionslista[SLUTTID]),Lektionslista[UNIK]),Lektionslista[UNIK],0),2),0)","v":0},{"$f":"IFERROR(INDEX(Lektionslista[],MATCH(SUMPRODUCT((Lektionslista[DAG]=Skolschema[[#Headers],[LÖRDAG]])*(ROUNDDOWN($B21,10)>=ROUNDDOWN(Lektionslista[STARTTID],10))*($B21<=Lektionslista[SLUTTID]),Lektionslista[UNIK]),Lektionslista[UNIK],0),2),0)","v":0}]
[null,"12:30:00",{"$f":"IFERROR(INDEX(Lektionslista[],MATCH(SUMPRODUCT((Lektionslista[DAG]=Skolschema[[#Headers],[SÖNDAG]])*(ROUNDDOWN($B22,10)>=ROUNDDOWN(Lektionslista[STARTTID],10))*($B22<=Lektionslista[SLUTTID]),Lektionslista[UNIK]),Lektionslista[UNIK],0),2),0)","v":0},{"$f":"IFERROR(INDEX(Lektionslista[],MATCH(SUMPRODUCT((Lektionslista[DAG]=Skolschema[[#Headers],[MÅNDAG]])*(ROUNDDOWN($B22,10)>=ROUNDDOWN(Lektionslista[STARTTID],10))*($B22<=Lektionslista[SLUTTID]),Lektionslista[UNIK]),Lektionslista[UNIK],0),2),0)","v":0},{"$f":"IFERROR(INDEX(Lektionslista[],MATCH(SUMPRODUCT((Lektionslista[DAG]=Skolschema[[#Headers],[TISDAG]])*(ROUNDDOWN($B22,10)>=ROUNDDOWN(Lektionslista[STARTTID],10))*($B22<=Lektionslista[SLUTTID]),Lektionslista[UNIK]),Lektionslista[UNIK],0),2),0)","v":0},{"$f":"IFERROR(INDEX(Lektionslista[],MATCH(SUMPRODUCT((Lektionslista[DAG]=Skolschema[[#Headers],[ONSDAG]])*(ROUNDDOWN($B22,10)>=ROUNDDOWN(Lektionslista[STARTTID],10))*($B22<=Lektionslista[SLUTTID]),Lektionslista[UNIK]),Lektionslista[UNIK],0),2),0)","v":0},{"$f":"IFERROR(INDEX(Lektionslista[],MATCH(SUMPRODUCT((Lektionslista[DAG]=Skolschema[[#Headers],[TORSDAG]])*(ROUNDDOWN($B22,10)>=ROUNDDOWN(Lektionslista[STARTTID],10))*($B22<=Lektionslista[SLUTTID]),Lektionslista[UNIK]),Lektionslista[UNIK],0),2),0)","v":0},{"$f":"IFERROR(INDEX(Lektionslista[],MATCH(SUMPRODUCT((Lektionslista[DAG]=Skolschema[[#Headers],[FREDAG]])*(ROUNDDOWN($B22,10)>=ROUNDDOWN(Lektionslista[STARTTID],10))*($B22<=Lektionslista[SLUTTID]),Lektionslista[UNIK]),Lektionslista[UNIK],0),2),0)","v":0},{"$f":"IFERROR(INDEX(Lektionslista[],MATCH(SUMPRODUCT((Lektionslista[DAG]=Skolschema[[#Headers],[LÖRDAG]])*(ROUNDDOWN($B22,10)>=ROUNDDOWN(Lektionslista[STARTTID],10))*($B22<=Lektionslista[SLUTTID]),Lektionslista[UNIK]),Lektionslista[UNIK],0),2),0)","v":0}]
[null,"12:45:00",{"$f":"IFERROR(INDEX(Lektionslista[],MATCH(SUMPRODUCT((Lektionslista[DAG]=Skolschema[[#Headers],[SÖNDAG]])*(ROUNDDOWN($B23,10)>=ROUNDDOWN(Lektionslista[STARTTID],10))*($B23<=Lektionslista[SLUTTID]),Lektionslista[UNIK]),Lektionslista[UNIK],0),2),0)","v":0},{"$f":"IFERROR(INDEX(Lektionslista[],MATCH(SUMPRODUCT((Lektionslista[DAG]=Skolschema[[#Headers],[MÅNDAG]])*(ROUNDDOWN($B23,10)>=ROUNDDOWN(Lektionslista[STARTTID],10))*($B23<=Lektionslista[SLUTTID]),Lektionslista[UNIK]),Lektionslista[UNIK],0),2),0)","v":0},{"$f":"IFERROR(INDEX(Lektionslista[],MATCH(SUMPRODUCT((Lektionslista[DAG]=Skolschema[[#Headers],[TISDAG]])*(ROUNDDOWN($B23,10)>=ROUNDDOWN(Lektionslista[STARTTID],10))*($B23<=Lektionslista[SLUTTID]),Lektionslista[UNIK]),Lektionslista[UNIK],0),2),0)","v":0},{"$f":"IFERROR(INDEX(Lektionslista[],MATCH(SUMPRODUCT((Lektionslista[DAG]=Skolschema[[#Headers],[ONSDAG]])*(ROUNDDOWN($B23,10)>=ROUNDDOWN(Lektionslista[STARTTID],10))*($B23<=Lektionslista[SLUTTID]),Lektionslista[UNIK]),Lektionslista[UNIK],0),2),0)","v":0},{"$f":"IFERROR(INDEX(Lektionslista[],MATCH(SUMPRODUCT((Lektionslista[DAG]=Skolschema[[#Headers],[TORSDAG]])*(ROUNDDOWN($B23,10)>=ROUNDDOWN(Lektionslista[STARTTID],10))*($B23<=Lektionslista[SLUTTID]),Lektionslista[UNIK]),Lektionslista[UNIK],0),2),0)","v":0},{"$f":"IFERROR(INDEX(Lektionslista[],MATCH(SUMPRODUCT((Lektionslista[DAG]=Skolschema[[#Headers],[FREDAG]])*(ROUNDDOWN($B23,10)>=ROUNDDOWN(Lektionslista[STARTTID],10))*($B23<=Lektionslista[SLUTTID]),Lektionslista[UNIK]),Lektionslista[UNIK],0),2),0)","v":0},{"$f":"IFERROR(INDEX(Lektionslista[],MATCH(SUMPRODUCT((Lektionslista[DAG]=Skolschema[[#Headers],[LÖRDAG]])*(ROUNDDOWN($B23,10)>=ROUNDDOWN(Lektionslista[STARTTID],10))*($B23<=Lektionslista[SLUTTID]),Lektionslista[UNIK]),Lektionslista[UNIK],0),2),0)","v":0}]
[null,"13:00:00",{"$f":"IFERROR(INDEX(Lektionslista[],MATCH(SUMPRODUCT((Lektionslista[DAG]=Skolschema[[#Headers],[SÖNDAG]])*(ROUNDDOWN($B24,10)>=ROUNDDOWN(Lektionslista[STARTTID],10))*($B24<=Lektionslista[SLUTTID]),Lektionslista[UNIK]),Lektionslista[UNIK],0),2),0)","v":0},{"$f":"IFERROR(INDEX(Lektionslista[],MATCH(SUMPRODUCT((Lektionslista[DAG]=Skolschema[[#Headers],[MÅNDAG]])*(ROUNDDOWN($B24,10)>=ROUNDDOWN(Lektionslista[STARTTID],10))*($B24<=Lektionslista[SLUTTID]),Lektionslista[UNIK]),Lektionslista[UNIK],0),2),0)","v":"WR-121"},{"$f":"IFERROR(INDEX(Lektionslista[],MATCH(SUMPRODUCT((Lektionslista[DAG]=Skolschema[[#Headers],[TISDAG]])*(ROUNDDOWN($B24,10)>=ROUNDDOWN(Lektionslista[STARTTID],10))*($B24<=Lektionslista[SLUTTID]),Lektionslista[UNIK]),Lektionslista[UNIK],0),2),0)","v":0},{"$f":"IFERROR(INDEX(Lektionslista[],MATCH(SUMPRODUCT((Lektionslista[DAG]=Skolschema[[#Headers],[ONSDAG]])*(ROUNDDOWN($B24,10)>=ROUNDDOWN(Lektionslista[STARTTID],10))*($B24<=Lektionslista[SLUTTID]),Lektionslista[UNIK]),Lektionslista[UNIK],0),2),0)","v":"WR-121"},{"$f":"IFERROR(INDEX(Lektionslista[],MATCH(SUMPRODUCT((Lektionslista[DAG]=Skolschema[[#Headers],[TORSDAG]])*(ROUNDDOWN($B24,10)>=ROUNDDOWN(Lektionslista[STARTTID],10))*($B24<=Lektionslista[SLUTTID]),Lektionslista[UNIK]),Lektionslista[UNIK],0),2),0)","v":0},{"$f":"IFERROR(INDEX(Lektionslista[],MATCH(SUMPRODUCT((Lektionslista[DAG]=Skolschema[[#Headers],[FREDAG]])*(ROUNDDOWN($B24,10)>=ROUNDDOWN(Lektionslista[STARTTID],10))*($B24<=Lektionslista[SLUTTID]),Lektionslista[UNIK]),Lektionslista[UNIK],0),2),0)","v":0},{"$f":"IFERROR(INDEX(Lektionslista[],MATCH(SUMPRODUCT((Lektionslista[DAG]=Skolschema[[#Headers],[LÖRDAG]])*(ROUNDDOWN($B24,10)>=ROUNDDOWN(Lektionslista[STARTTID],10))*($B24<=Lektionslista[SLUTTID]),Lektionslista[UNIK]),Lektionslista[UNIK],0),2),0)","v":0}]
[null,"13:15:00",{"$f":"IFERROR(INDEX(Lektionslista[],MATCH(SUMPRODUCT((Lektionslista[DAG]=Skolschema[[#Headers],[SÖNDAG]])*(ROUNDDOWN($B25,10)>=ROUNDDOWN(Lektionslista[STARTTID],10))*($B25<=Lektionslista[SLUTTID]),Lektionslista[UNIK]),Lektionslista[UNIK],0),2),0)","v":0},{"$f":"IFERROR(INDEX(Lektionslista[],MATCH(SUMPRODUCT((Lektionslista[DAG]=Skolschema[[#Headers],[MÅNDAG]])*(ROUNDDOWN($B25,10)>=ROUNDDOWN(Lektionslista[STARTTID],10))*($B25<=Lektionslista[SLUTTID]),Lektionslista[UNIK]),Lektionslista[UNIK],0),2),0)","v":"WR-121"},{"$f":"IFERROR(INDEX(Lektionslista[],MATCH(SUMPRODUCT((Lektionslista[DAG]=Skolschema[[#Headers],[TISDAG]])*(ROUNDDOWN($B25,10)>=ROUNDDOWN(Lektionslista[STARTTID],10))*($B25<=Lektionslista[SLUTTID]),Lektionslista[UNIK]),Lektionslista[UNIK],0),2),0)","v":0},{"$f":"IFERROR(INDEX(Lektionslista[],MATCH(SUMPRODUCT((Lektionslista[DAG]=Skolschema[[#Headers],[ONSDAG]])*(ROUNDDOWN($B25,10)>=ROUNDDOWN(Lektionslista[STARTTID],10))*($B25<=Lektionslista[SLUTTID]),Lektionslista[UNIK]),Lektionslista[UNIK],0),2),0)","v":"WR-121"},{"$f":"IFERROR(INDEX(Lektionslista[],MATCH(SUMPRODUCT((Lektionslista[DAG]=Skolschema[[#Headers],[TORSDAG]])*(ROUNDDOWN($B25,10)>=ROUNDDOWN(Lektionslista[STARTTID],10))*($B25<=Lektionslista[SLUTTID]),Lektionslista[UNIK]),Lektionslista[UNIK],0),2),0)","v":0},{"$f":"IFERROR(INDEX(Lektionslista[],MATCH(SUMPRODUCT((Lektionslista[DAG]=Skolschema[[#Headers],[FREDAG]])*(ROUNDDOWN($B25,10)>=ROUNDDOWN(Lektionslista[STARTTID],10))*($B25<=Lektionslista[SLUTTID]),Lektionslista[UNIK]),Lektionslista[UNIK],0),2),0)","v":0},{"$f":"IFERROR(INDEX(Lektionslista[],MATCH(SUMPRODUCT((Lektionslista[DAG]=Skolschema[[#Headers],[LÖRDAG]])*(ROUNDDOWN($B25,10)>=ROUNDDOWN(Lektionslista[STARTTID],10))*($B25<=Lektionslista[SLUTTID]),Lektionslista[UNIK]),Lektionslista[UNIK],0),2),0)","v":0}]
[null,"13:30:00",{"$f":"IFERROR(INDEX(Lektionslista[],MATCH(SUMPRODUCT((Lektionslista[DAG]=Skolschema[[#Headers],[SÖNDAG]])*(ROUNDDOWN($B26,10)>=ROUNDDOWN(Lektionslista[STARTTID],10))*($B26<=Lektionslista[SLUTTID]),Lektionslista[UNIK]),Lektionslista[UNIK],0),2),0)","v":0},{"$f":"IFERROR(INDEX(Lektionslista[],MATCH(SUMPRODUCT((Lektionslista[DAG]=Skolschema[[#Headers],[MÅNDAG]])*(ROUNDDOWN($B26,10)>=ROUNDDOWN(Lektionslista[STARTTID],10))*($B26<=Lektionslista[SLUTTID]),Lektionslista[UNIK]),Lektionslista[UNIK],0),2),0)","v":"WR-121"},{"$f":"IFERROR(INDEX(Lektionslista[],MATCH(SUMPRODUCT((Lektionslista[DAG]=Skolschema[[#Headers],[TISDAG]])*(ROUNDDOWN($B26,10)>=ROUNDDOWN(Lektionslista[STARTTID],10))*($B26<=Lektionslista[SLUTTID]),Lektionslista[UNIK]),Lektionslista[UNIK],0),2),0)","v":0},{"$f":"IFERROR(INDEX(Lektionslista[],MATCH(SUMPRODUCT((Lektionslista[DAG]=Skolschema[[#Headers],[ONSDAG]])*(ROUNDDOWN($B26,10)>=ROUNDDOWN(Lektionslista[STARTTID],10))*($B26<=Lektionslista[SLUTTID]),Lektionslista[UNIK]),Lektionslista[UNIK],0),2),0)","v":"WR-121"},{"$f":"IFERROR(INDEX(Lektionslista[],MATCH(SUMPRODUCT((Lektionslista[DAG]=Skolschema[[#Headers],[TORSDAG]])*(ROUNDDOWN($B26,10)>=ROUNDDOWN(Lektionslista[STARTTID],10))*($B26<=Lektionslista[SLUTTID]),Lektionslista[UNIK]),Lektionslista[UNIK],0),2),0)","v":0},{"$f":"IFERROR(INDEX(Lektionslista[],MATCH(SUMPRODUCT((Lektionslista[DAG]=Skolschema[[#Headers],[FREDAG]])*(ROUNDDOWN($B26,10)>=ROUNDDOWN(Lektionslista[STARTTID],10))*($B26<=Lektionslista[SLUTTID]),Lektionslista[UNIK]),Lektionslista[UNIK],0),2),0)","v":0},{"$f":"IFERROR(INDEX(Lektionslista[],MATCH(SUMPRODUCT((Lektionslista[DAG]=Skolschema[[#Headers],[LÖRDAG]])*(ROUNDDOWN($B26,10)>=ROUNDDOWN(Lektionslista[STARTTID],10))*($B26<=Lektionslista[SLUTTID]),Lektionslista[UNIK]),Lektionslista[UNIK],0),2),0)","v":0}]
[null,"13:45:00",{"$f":"IFERROR(INDEX(Lektionslista[],MATCH(SUMPRODUCT((Lektionslista[DAG]=Skolschema[[#Headers],[SÖNDAG]])*(ROUNDDOWN($B27,10)>=ROUNDDOWN(Lektionslista[STARTTID],10))*($B27<=Lektionslista[SLUTTID]),Lektionslista[UNIK]),Lektionslista[UNIK],0),2),0)","v":0},{"$f":"IFERROR(INDEX(Lektionslista[],MATCH(SUMPRODUCT((Lektionslista[DAG]=Skolschema[[#Headers],[MÅNDAG]])*(ROUNDDOWN($B27,10)>=ROUNDDOWN(Lektionslista[STARTTID],10))*($B27<=Lektionslista[SLUTTID]),Lektionslista[UNIK]),Lektionslista[UNIK],0),2),0)","v":"WR-121"},{"$f":"IFERROR(INDEX(Lektionslista[],MATCH(SUMPRODUCT((Lektionslista[DAG]=Skolschema[[#Headers],[TISDAG]])*(ROUNDDOWN($B27,10)>=ROUNDDOWN(Lektionslista[STARTTID],10))*($B27<=Lektionslista[SLUTTID]),Lektionslista[UNIK]),Lektionslista[UNIK],0),2),0)","v":0},{"$f":"IFERROR(INDEX(Lektionslista[],MATCH(SUMPRODUCT((Lektionslista[DAG]=Skolschema[[#Headers],[ONSDAG]])*(ROUNDDOWN($B27,10)>=ROUNDDOWN(Lektionslista[STARTTID],10))*($B27<=Lektionslista[SLUTTID]),Lektionslista[UNIK]),Lektionslista[UNIK],0),2),0)","v":"WR-121"},{"$f":"IFERROR(INDEX(Lektionslista[],MATCH(SUMPRODUCT((Lektionslista[DAG]=Skolschema[[#Headers],[TORSDAG]])*(ROUNDDOWN($B27,10)>=ROUNDDOWN(Lektionslista[STARTTID],10))*($B27<=Lektionslista[SLUTTID]),Lektionslista[UNIK]),Lektionslista[UNIK],0),2),0)","v":0},{"$f":"IFERROR(INDEX(Lektionslista[],MATCH(SUMPRODUCT((Lektionslista[DAG]=Skolschema[[#Headers],[FREDAG]])*(ROUNDDOWN($B27,10)>=ROUNDDOWN(Lektionslista[STARTTID],10))*($B27<=Lektionslista[SLUTTID]),Lektionslista[UNIK]),Lektionslista[UNIK],0),2),0)","v":0},{"$f":"IFERROR(INDEX(Lektionslista[],MATCH(SUMPRODUCT((Lektionslista[DAG]=Skolschema[[#Headers],[LÖRDAG]])*(ROUNDDOWN($B27,10)>=ROUNDDOWN(Lektionslista[STARTTID],10))*($B27<=Lektionslista[SLUTTID]),Lektionslista[UNIK]),Lektionslista[UNIK],0),2),0)","v":0}]
[null,"14:00:00",{"$f":"IFERROR(INDEX(Lektionslista[],MATCH(SUMPRODUCT((Lektionslista[DAG]=Skolschema[[#Headers],[SÖNDAG]])*(ROUNDDOWN($B28,10)>=ROUNDDOWN(Lektionslista[STARTTID],10))*($B28<=Lektionslista[SLUTTID]),Lektionslista[UNIK]),Lektionslista[UNIK],0),2),0)","v":0},{"$f":"IFERROR(INDEX(Lektionslista[],MATCH(SUMPRODUCT((Lektionslista[DAG]=Skolschema[[#Headers],[MÅNDAG]])*(ROUNDDOWN($B28,10)>=ROUNDDOWN(Lektionslista[STARTTID],10))*($B28<=Lektionslista[SLUTTID]),Lektionslista[UNIK]),Lektionslista[UNIK],0),2),0)","v":"WR-121"},{"$f":"IFERROR(INDEX(Lektionslista[],MATCH(SUMPRODUCT((Lektionslista[DAG]=Skolschema[[#Headers],[TISDAG]])*(ROUNDDOWN($B28,10)>=ROUNDDOWN(Lektionslista[STARTTID],10))*($B28<=Lektionslista[SLUTTID]),Lektionslista[UNIK]),Lektionslista[UNIK],0),2),0)","v":0},{"$f":"IFERROR(INDEX(Lektionslista[],MATCH(SUMPRODUCT((Lektionslista[DAG]=Skolschema[[#Headers],[ONSDAG]])*(ROUNDDOWN($B28,10)>=ROUNDDOWN(Lektionslista[STARTTID],10))*($B28<=Lektionslista[SLUTTID]),Lektionslista[UNIK]),Lektionslista[UNIK],0),2),0)","v":"WR-121"},{"$f":"IFERROR(INDEX(Lektionslista[],MATCH(SUMPRODUCT((Lektionslista[DAG]=Skolschema[[#Headers],[TORSDAG]])*(ROUNDDOWN($B28,10)>=ROUNDDOWN(Lektionslista[STARTTID],10))*($B28<=Lektionslista[SLUTTID]),Lektionslista[UNIK]),Lektionslista[UNIK],0),2),0)","v":0},{"$f":"IFERROR(INDEX(Lektionslista[],MATCH(SUMPRODUCT((Lektionslista[DAG]=Skolschema[[#Headers],[FREDAG]])*(ROUNDDOWN($B28,10)>=ROUNDDOWN(Lektionslista[STARTTID],10))*($B28<=Lektionslista[SLUTTID]),Lektionslista[UNIK]),Lektionslista[UNIK],0),2),0)","v":0},{"$f":"IFERROR(INDEX(Lektionslista[],MATCH(SUMPRODUCT((Lektionslista[DAG]=Skolschema[[#Headers],[LÖRDAG]])*(ROUNDDOWN($B28,10)>=ROUNDDOWN(Lektionslista[STARTTID],10))*($B28<=Lektionslista[SLUTTID]),Lektionslista[UNIK]),Lektionslista[UNIK],0),2),0)","v":0}]
[null,"14:15:00",{"$f":"IFERROR(INDEX(Lektionslista[],MATCH(SUMPRODUCT((Lektionslista[DAG]=Skolschema[[#Headers],[SÖNDAG]])*(ROUNDDOWN($B29,10)>=ROUNDDOWN(Lektionslista[STARTTID],10))*($B29<=Lektionslista[SLUTTID]),Lektionslista[UNIK]),Lektionslista[UNIK],0),2),0)","v":0},{"$f":"IFERROR(INDEX(Lektionslista[],MATCH(SUMPRODUCT((Lektionslista[DAG]=Skolschema[[#Headers],[MÅNDAG]])*(ROUNDDOWN($B29,10)>=ROUNDDOWN(Lektionslista[STARTTID],10))*($B29<=Lektionslista[SLUTTID]),Lektionslista[UNIK]),Lektionslista[UNIK],0),2),0)","v":0},{"$f":"IFERROR(INDEX(Lektionslista[],MATCH(SUMPRODUCT((Lektionslista[DAG]=Skolschema[[#Headers],[TISDAG]])*(ROUNDDOWN($B29,10)>=ROUNDDOWN(Lektionslista[STARTTID],10))*($B29<=Lektionslista[SLUTTID]),Lektionslista[UNIK]),Lektionslista[UNIK],0),2),0)","v":0},{"$f":"IFERROR(INDEX(Lektionslista[],MATCH(SUMPRODUCT((Lektionslista[DAG]=Skolschema[[#Headers],[ONSDAG]])*(ROUNDDOWN($B29,10)>=ROUNDDOWN(Lektionslista[STARTTID],10))*($B29<=Lektionslista[SLUTTID]),Lektionslista[UNIK]),Lektionslista[UNIK],0),2),0)","v":0},{"$f":"IFERROR(INDEX(Lektionslista[],MATCH(SUMPRODUCT((Lektionslista[DAG]=Skolschema[[#Headers],[TORSDAG]])*(ROUNDDOWN($B29,10)>=ROUNDDOWN(Lektionslista[STARTTID],10))*($B29<=Lektionslista[SLUTTID]),Lektionslista[UNIK]),Lektionslista[UNIK],0),2),0)","v":0},{"$f":"IFERROR(INDEX(Lektionslista[],MATCH(SUMPRODUCT((Lektionslista[DAG]=Skolschema[[#Headers],[FREDAG]])*(ROUNDDOWN($B29,10)>=ROUNDDOWN(Lektionslista[STARTTID],10))*($B29<=Lektionslista[SLUTTID]),Lektionslista[UNIK]),Lektionslista[UNIK],0),2),0)","v":0},{"$f":"IFERROR(INDEX(Lektionslista[],MATCH(SUMPRODUCT((Lektionslista[DAG]=Skolschema[[#Headers],[LÖRDAG]])*(ROUNDDOWN($B29,10)>=ROUNDDOWN(Lektionslista[STARTTID],10))*($B29<=Lektionslista[SLUTTID]),Lektionslista[UNIK]),Lektionslista[UNIK],0),2),0)","v":0}]
[null,"14:30:00",{"$f":"IFERROR(INDEX(Lektionslista[],MATCH(SUMPRODUCT((Lektionslista[DAG]=Skolschema[[#Headers],[SÖNDAG]])*(ROUNDDOWN($B30,10)>=ROUNDDOWN(Lektionslista[STARTTID],10))*($B30<=Lektionslista[SLUTTID]),Lektionslista[UNIK]),Lektionslista[UNIK],0),2),0)","v":0},{"$f":"IFERROR(INDEX(Lektionslista[],MATCH(SUMPRODUCT((Lektionslista[DAG]=Skolschema[[#Headers],[MÅNDAG]])*(ROUNDDOWN($B30,10)>=ROUNDDOWN(Lektionslista[STARTTID],10))*($B30<=Lektionslista[SLUTTID]),Lektionslista[UNIK]),Lektionslista[UNIK],0),2),0)","v":0},{"$f":"IFERROR(INDEX(Lektionslista[],MATCH(SUMPRODUCT((Lektionslista[DAG]=Skolschema[[#Headers],[TISDAG]])*(ROUNDDOWN($B30,10)>=ROUNDDOWN(Lektionslista[STARTTID],10))*($B30<=Lektionslista[SLUTTID]),Lektionslista[UNIK]),Lektionslista[UNIK],0),2),0)","v":0},{"$f":"IFERROR(INDEX(Lektionslista[],MATCH(SUMPRODUCT((Lektionslista[DAG]=Skolschema[[#Headers],[ONSDAG]])*(ROUNDDOWN($B30,10)>=ROUNDDOWN(Lektionslista[STARTTID],10))*($B30<=Lektionslista[SLUTTID]),Lektionslista[UNIK]),Lektionslista[UNIK],0),2),0)","v":0},{"$f":"IFERROR(INDEX(Lektionslista[],MATCH(SUMPRODUCT((Lektionslista[DAG]=Skolschema[[#Headers],[TORSDAG]])*(ROUNDDOWN($B30,10)>=ROUNDDOWN(Lektionslista[STARTTID],10))*($B30<=Lektionslista[SLUTTID]),Lektionslista[UNIK]),Lektionslista[UNIK],0),2),0)","v":0},{"$f":"IFERROR(INDEX(Lektionslista[],MATCH(SUMPRODUCT((Lektionslista[DAG]=Skolschema[[#Headers],[FREDAG]])*(ROUNDDOWN($B30,10)>=ROUNDDOWN(Lektionslista[STARTTID],10))*($B30<=Lektionslista[SLUTTID]),Lektionslista[UNIK]),Lektionslista[UNIK],0),2),0)","v":0},{"$f":"IFERROR(INDEX(Lektionslista[],MATCH(SUMPRODUCT((Lektionslista[DAG]=Skolschema[[#Headers],[LÖRDAG]])*(ROUNDDOWN($B30,10)>=ROUNDDOWN(Lektionslista[STARTTID],10))*($B30<=Lektionslista[SLUTTID]),Lektionslista[UNIK]),Lektionslista[UNIK],0),2),0)","v":0}]
[null,"14:45:00",{"$f":"IFERROR(INDEX(Lektionslista[],MATCH(SUMPRODUCT((Lektionslista[DAG]=Skolschema[[#Headers],[SÖNDAG]])*(ROUNDDOWN($B31,10)>=ROUNDDOWN(Lektionslista[STARTTID],10))*($B31<=Lektionslista[SLUTTID]),Lektionslista[UNIK]),Lektionslista[UNIK],0),2),0)","v":0},{"$f":"IFERROR(INDEX(Lektionslista[],MATCH(SUMPRODUCT((Lektionslista[DAG]=Skolschema[[#Headers],[MÅNDAG]])*(ROUNDDOWN($B31,10)>=ROUNDDOWN(Lektionslista[STARTTID],10))*($B31<=Lektionslista[SLUTTID]),Lektionslista[UNIK]),Lektionslista[UNIK],0),2),0)","v":0},{"$f":"IFERROR(INDEX(Lektionslista[],MATCH(SUMPRODUCT((Lektionslista[DAG]=Skolschema[[#Headers],[TISDAG]])*(ROUNDDOWN($B31,10)>=ROUNDDOWN(Lektionslista[STARTTID],10))*($B31<=Lektionslista[SLUTTID]),Lektionslista[UNIK]),Lektionslista[UNIK],0),2),0)","v":0},{"$f":"IFERROR(INDEX(Lektionslista[],MATCH(SUMPRODUCT((Lektionslista[DAG]=Skolschema[[#Headers],[ONSDAG]])*(ROUNDDOWN($B31,10)>=ROUNDDOWN(Lektionslista[STARTTID],10))*($B31<=Lektionslista[SLUTTID]),Lektionslista[UNIK]),Lektionslista[UNIK],0),2),0)","v":0},{"$f":"IFERROR(INDEX(Lektionslista[],MATCH(SUMPRODUCT((Lektionslista[DAG]=Skolschema[[#Headers],[TORSDAG]])*(ROUNDDOWN($B31,10)>=ROUNDDOWN(Lektionslista[STARTTID],10))*($B31<=Lektionslista[SLUTTID]),Lektionslista[UNIK]),Lektionslista[UNIK],0),2),0)","v":0},{"$f":"IFERROR(INDEX(Lektionslista[],MATCH(SUMPRODUCT((Lektionslista[DAG]=Skolschema[[#Headers],[FREDAG]])*(ROUNDDOWN($B31,10)>=ROUNDDOWN(Lektionslista[STARTTID],10))*($B31<=Lektionslista[SLUTTID]),Lektionslista[UNIK]),Lektionslista[UNIK],0),2),0)","v":0},{"$f":"IFERROR(INDEX(Lektionslista[],MATCH(SUMPRODUCT((Lektionslista[DAG]=Skolschema[[#Headers],[LÖRDAG]])*(ROUNDDOWN($B31,10)>=ROUNDDOWN(Lektionslista[STARTTID],10))*($B31<=Lektionslista[SLUTTID]),Lektionslista[UNIK]),Lektionslista[UNIK],0),2),0)","v":0}]
[null,"15:00:00",{"$f":"IFERROR(INDEX(Lektionslista[],MATCH(SUMPRODUCT((Lektionslista[DAG]=Skolschema[[#Headers],[SÖNDAG]])*(ROUNDDOWN($B32,10)>=ROUNDDOWN(Lektionslista[STARTTID],10))*($B32<=Lektionslista[SLUTTID]),Lektionslista[UNIK]),Lektionslista[UNIK],0),2),0)","v":0},{"$f":"IFERROR(INDEX(Lektionslista[],MATCH(SUMPRODUCT((Lektionslista[DAG]=Skolschema[[#Headers],[MÅNDAG]])*(ROUNDDOWN($B32,10)>=ROUNDDOWN(Lektionslista[STARTTID],10))*($B32<=Lektionslista[SLUTTID]),Lektionslista[UNIK]),Lektionslista[UNIK],0),2),0)","v":0},{"$f":"IFERROR(INDEX(Lektionslista[],MATCH(SUMPRODUCT((Lektionslista[DAG]=Skolschema[[#Headers],[TISDAG]])*(ROUNDDOWN($B32,10)>=ROUNDDOWN(Lektionslista[STARTTID],10))*($B32<=Lektionslista[SLUTTID]),Lektionslista[UNIK]),Lektionslista[UNIK],0),2),0)","v":0},{"$f":"IFERROR(INDEX(Lektionslista[],MATCH(SUMPRODUCT((Lektionslista[DAG]=Skolschema[[#Headers],[ONSDAG]])*(ROUNDDOWN($B32,10)>=ROUNDDOWN(Lektionslista[STARTTID],10))*($B32<=Lektionslista[SLUTTID]),Lektionslista[UNIK]),Lektionslista[UNIK],0),2),0)","v":0},{"$f":"IFERROR(INDEX(Lektionslista[],MATCH(SUMPRODUCT((Lektionslista[DAG]=Skolschema[[#Headers],[TORSDAG]])*(ROUNDDOWN($B32,10)>=ROUNDDOWN(Lektionslista[STARTTID],10))*($B32<=Lektionslista[SLUTTID]),Lektionslista[UNIK]),Lektionslista[UNIK],0),2),0)","v":0},{"$f":"IFERROR(INDEX(Lektionslista[],MATCH(SUMPRODUCT((Lektionslista[DAG]=Skolschema[[#Headers],[FREDAG]])*(ROUNDDOWN($B32,10)>=ROUNDDOWN(Lektionslista[STARTTID],10))*($B32<=Lektionslista[SLUTTID]),Lektionslista[UNIK]),Lektionslista[UNIK],0),2),0)","v":0},{"$f":"IFERROR(INDEX(Lektionslista[],MATCH(SUMPRODUCT((Lektionslista[DAG]=Skolschema[[#Headers],[LÖRDAG]])*(ROUNDDOWN($B32,10)>=ROUNDDOWN(Lektionslista[STARTTID],10))*($B32<=Lektionslista[SLUTTID]),Lektionslista[UNIK]),Lektionslista[UNIK],0),2),0)","v":0}]
[null,"15:15:00",{"$f":"IFERROR(INDEX(Lektionslista[],MATCH(SUMPRODUCT((Lektionslista[DAG]=Skolschema[[#Headers],[SÖNDAG]])*(ROUNDDOWN($B33,10)>=ROUNDDOWN(Lektionslista[STARTTID],10))*($B33<=Lektionslista[SLUTTID]),Lektionslista[UNIK]),Lektionslista[UNIK],0),2),0)","v":0},{"$f":"IFERROR(INDEX(Lektionslista[],MATCH(SUMPRODUCT((Lektionslista[DAG]=Skolschema[[#Headers],[MÅNDAG]])*(ROUNDDOWN($B33,10)>=ROUNDDOWN(Lektionslista[STARTTID],10))*($B33<=Lektionslista[SLUTTID]),Lektionslista[UNIK]),Lektionslista[UNIK],0),2),0)","v":0},{"$f":"IFERROR(INDEX(Lektionslista[],MATCH(SUMPRODUCT((Lektionslista[DAG]=Skolschema[[#Headers],[TISDAG]])*(ROUNDDOWN($B33,10)>=ROUNDDOWN(Lektionslista[STARTTID],10))*($B33<=Lektionslista[SLUTTID]),Lektionslista[UNIK]),Lektionslista[UNIK],0),2),0)","v":0},{"$f":"IFERROR(INDEX(Lektionslista[],MATCH(SUMPRODUCT((Lektionslista[DAG]=Skolschema[[#Headers],[ONSDAG]])*(ROUNDDOWN($B33,10)>=ROUNDDOWN(Lektionslista[STARTTID],10))*($B33<=Lektionslista[SLUTTID]),Lektionslista[UNIK]),Lektionslista[UNIK],0),2),0)","v":0},{"$f":"IFERROR(INDEX(Lektionslista[],MATCH(SUMPRODUCT((Lektionslista[DAG]=Skolschema[[#Headers],[TORSDAG]])*(ROUNDDOWN($B33,10)>=ROUNDDOWN(Lektionslista[STARTTID],10))*($B33<=Lektionslista[SLUTTID]),Lektionslista[UNIK]),Lektionslista[UNIK],0),2),0)","v":0},{"$f":"IFERROR(INDEX(Lektionslista[],MATCH(SUMPRODUCT((Lektionslista[DAG]=Skolschema[[#Headers],[FREDAG]])*(ROUNDDOWN($B33,10)>=ROUNDDOWN(Lektionslista[STARTTID],10))*($B33<=Lektionslista[SLUTTID]),Lektionslista[UNIK]),Lektionslista[UNIK],0),2),0)","v":0},{"$f":"IFERROR(INDEX(Lektionslista[],MATCH(SUMPRODUCT((Lektionslista[DAG]=Skolschema[[#Headers],[LÖRDAG]])*(ROUNDDOWN($B33,10)>=ROUNDDOWN(Lektionslista[STARTTID],10))*($B33<=Lektionslista[SLUTTID]),Lektionslista[UNIK]),Lektionslista[UNIK],0),2),0)","v":0}]
[null,"15:30:00",{"$f":"IFERROR(INDEX(Lektionslista[],MATCH(SUMPRODUCT((Lektionslista[DAG]=Skolschema[[#Headers],[SÖNDAG]])*(ROUNDDOWN($B34,10)>=ROUNDDOWN(Lektionslista[STARTTID],10))*($B34<=Lektionslista[SLUTTID]),Lektionslista[UNIK]),Lektionslista[UNIK],0),2),0)","v":0},{"$f":"IFERROR(INDEX(Lektionslista[],MATCH(SUMPRODUCT((Lektionslista[DAG]=Skolschema[[#Headers],[MÅNDAG]])*(ROUNDDOWN($B34,10)>=ROUNDDOWN(Lektionslista[STARTTID],10))*($B34<=Lektionslista[SLUTTID]),Lektionslista[UNIK]),Lektionslista[UNIK],0),2),0)","v":0},{"$f":"IFERROR(INDEX(Lektionslista[],MATCH(SUMPRODUCT((Lektionslista[DAG]=Skolschema[[#Headers],[TISDAG]])*(ROUNDDOWN($B34,10)>=ROUNDDOWN(Lektionslista[STARTTID],10))*($B34<=Lektionslista[SLUTTID]),Lektionslista[UNIK]),Lektionslista[UNIK],0),2),0)","v":0},{"$f":"IFERROR(INDEX(Lektionslista[],MATCH(SUMPRODUCT((Lektionslista[DAG]=Skolschema[[#Headers],[ONSDAG]])*(ROUNDDOWN($B34,10)>=ROUNDDOWN(Lektionslista[STARTTID],10))*($B34<=Lektionslista[SLUTTID]),Lektionslista[UNIK]),Lektionslista[UNIK],0),2),0)","v":0},{"$f":"IFERROR(INDEX(Lektionslista[],MATCH(SUMPRODUCT((Lektionslista[DAG]=Skolschema[[#Headers],[TORSDAG]])*(ROUNDDOWN($B34,10)>=ROUNDDOWN(Lektionslista[STARTTID],10))*($B34<=Lektionslista[SLUTTID]),Lektionslista[UNIK]),Lektionslista[UNIK],0),2),0)","v":0},{"$f":"IFERROR(INDEX(Lektionslista[],MATCH(SUMPRODUCT((Lektionslista[DAG]=Skolschema[[#Headers],[FREDAG]])*(ROUNDDOWN($B34,10)>=ROUNDDOWN(Lektionslista[STARTTID],10))*($B34<=Lektionslista[SLUTTID]),Lektionslista[UNIK]),Lektionslista[UNIK],0),2),0)","v":0},{"$f":"IFERROR(INDEX(Lektionslista[],MATCH(SUMPRODUCT((Lektionslista[DAG]=Skolschema[[#Headers],[LÖRDAG]])*(ROUNDDOWN($B34,10)>=ROUNDDOWN(Lektionslista[STARTTID],10))*($B34<=Lektionslista[SLUTTID]),Lektionslista[UNIK]),Lektionslista[UNIK],0),2),0)","v":0}]
[null,"15:45:00",{"$f":"IFERROR(INDEX(Lektionslista[],MATCH(SUMPRODUCT((Lektionslista[DAG]=Skolschema[[#Headers],[SÖNDAG]])*(ROUNDDOWN($B35,10)>=ROUNDDOWN(Lektionslista[STARTTID],10))*($B35<=Lektionslista[SLUTTID]),Lektionslista[UNIK]),Lektionslista[UNIK],0),2),0)","v":0},{"$f":"IFERROR(INDEX(Lektionslista[],MATCH(SUMPRODUCT((Lektionslista[DAG]=Skolschema[[#Headers],[MÅNDAG]])*(ROUNDDOWN($B35,10)>=ROUNDDOWN(Lektionslista[STARTTID],10))*($B35<=Lektionslista[SLUTTID]),Lektionslista[UNIK]),Lektionslista[UNIK],0),2),0)","v":0},{"$f":"IFERROR(INDEX(Lektionslista[],MATCH(SUMPRODUCT((Lektionslista[DAG]=Skolschema[[#Headers],[TISDAG]])*(ROUNDDOWN($B35,10)>=ROUNDDOWN(Lektionslista[STARTTID],10))*($B35<=Lektionslista[SLUTTID]),Lektionslista[UNIK]),Lektionslista[UNIK],0),2),0)","v":0},{"$f":"IFERROR(INDEX(Lektionslista[],MATCH(SUMPRODUCT((Lektionslista[DAG]=Skolschema[[#Headers],[ONSDAG]])*(ROUNDDOWN($B35,10)>=ROUNDDOWN(Lektionslista[STARTTID],10))*($B35<=Lektionslista[SLUTTID]),Lektionslista[UNIK]),Lektionslista[UNIK],0),2),0)","v":0},{"$f":"IFERROR(INDEX(Lektionslista[],MATCH(SUMPRODUCT((Lektionslista[DAG]=Skolschema[[#Headers],[TORSDAG]])*(ROUNDDOWN($B35,10)>=ROUNDDOWN(Lektionslista[STARTTID],10))*($B35<=Lektionslista[SLUTTID]),Lektionslista[UNIK]),Lektionslista[UNIK],0),2),0)","v":0},{"$f":"IFERROR(INDEX(Lektionslista[],MATCH(SUMPRODUCT((Lektionslista[DAG]=Skolschema[[#Headers],[FREDAG]])*(ROUNDDOWN($B35,10)>=ROUNDDOWN(Lektionslista[STARTTID],10))*($B35<=Lektionslista[SLUTTID]),Lektionslista[UNIK]),Lektionslista[UNIK],0),2),0)","v":0},{"$f":"IFERROR(INDEX(Lektionslista[],MATCH(SUMPRODUCT((Lektionslista[DAG]=Skolschema[[#Headers],[LÖRDAG]])*(ROUNDDOWN($B35,10)>=ROUNDDOWN(Lektionslista[STARTTID],10))*($B35<=Lektionslista[SLUTTID]),Lektionslista[UNIK]),Lektionslista[UNIK],0),2),0)","v":0}]
[null,"16:00:00",{"$f":"IFERROR(INDEX(Lektionslista[],MATCH(SUMPRODUCT((Lektionslista[DAG]=Skolschema[[#Headers],[SÖNDAG]])*(ROUNDDOWN($B36,10)>=ROUNDDOWN(Lektionslista[STARTTID],10))*($B36<=Lektionslista[SLUTTID]),Lektionslista[UNIK]),Lektionslista[UNIK],0),2),0)","v":0},{"$f":"IFERROR(INDEX(Lektionslista[],MATCH(SUMPRODUCT((Lektionslista[DAG]=Skolschema[[#Headers],[MÅNDAG]])*(ROUNDDOWN($B36,10)>=ROUNDDOWN(Lektionslista[STARTTID],10))*($B36<=Lektionslista[SLUTTID]),Lektionslista[UNIK]),Lektionslista[UNIK],0),2),0)","v":"SP-111"},{"$f":"IFERROR(INDEX(Lektionslista[],MATCH(SUMPRODUCT((Lektionslista[DAG]=Skolschema[[#Headers],[TISDAG]])*(ROUNDDOWN($B36,10)>=ROUNDDOWN(Lektionslista[STARTTID],10))*($B36<=Lektionslista[SLUTTID]),Lektionslista[UNIK]),Lektionslista[UNIK],0),2),0)","v":0},{"$f":"IFERROR(INDEX(Lektionslista[],MATCH(SUMPRODUCT((Lektionslista[DAG]=Skolschema[[#Headers],[ONSDAG]])*(ROUNDDOWN($B36,10)>=ROUNDDOWN(Lektionslista[STARTTID],10))*($B36<=Lektionslista[SLUTTID]),Lektionslista[UNIK]),Lektionslista[UNIK],0),2),0)","v":0},{"$f":"IFERROR(INDEX(Lektionslista[],MATCH(SUMPRODUCT((Lektionslista[DAG]=Skolschema[[#Headers],[TORSDAG]])*(ROUNDDOWN($B36,10)>=ROUNDDOWN(Lektionslista[STARTTID],10))*($B36<=Lektionslista[SLUTTID]),Lektionslista[UNIK]),Lektionslista[UNIK],0),2),0)","v":0},{"$f":"IFERROR(INDEX(Lektionslista[],MATCH(SUMPRODUCT((Lektionslista[DAG]=Skolschema[[#Headers],[FREDAG]])*(ROUNDDOWN($B36,10)>=ROUNDDOWN(Lektionslista[STARTTID],10))*($B36<=Lektionslista[SLUTTID]),Lektionslista[UNIK]),Lektionslista[UNIK],0),2),0)","v":0},{"$f":"IFERROR(INDEX(Lektionslista[],MATCH(SUMPRODUCT((Lektionslista[DAG]=Skolschema[[#Headers],[LÖRDAG]])*(ROUNDDOWN($B36,10)>=ROUNDDOWN(Lektionslista[STARTTID],10))*($B36<=Lektionslista[SLUTTID]),Lektionslista[UNIK]),Lektionslista[UNIK],0),2),0)","v":0}]
[null,{"$f":"B36+Ökning","v":"16:15:00"},{"$f":"IFERROR(INDEX(Lektionslista[],MATCH(SUMPRODUCT((Lektionslista[DAG]=Skolschema[[#Headers],[SÖNDAG]])*(ROUNDDOWN($B37,10)>=ROUNDDOWN(Lektionslista[STARTTID],10))*($B37<=Lektionslista[SLUTTID]),Lektionslista[UNIK]),Lektionslista[UNIK],0),2),0)","v":0},{"$f":"IFERROR(INDEX(Lektionslista[],MATCH(SUMPRODUCT((Lektionslista[DAG]=Skolschema[[#Headers],[MÅNDAG]])*(ROUNDDOWN($B37,10)>=ROUNDDOWN(Lektionslista[STARTTID],10))*($B37<=Lektionslista[SLUTTID]),Lektionslista[UNIK]),Lektionslista[UNIK],0),2),0)","v":"SP-111"},{"$f":"IFERROR(INDEX(Lektionslista[],MATCH(SUMPRODUCT((Lektionslista[DAG]=Skolschema[[#Headers],[TISDAG]])*(ROUNDDOWN($B37,10)>=ROUNDDOWN(Lektionslista[STARTTID],10))*($B37<=Lektionslista[SLUTTID]),Lektionslista[UNIK]),Lektionslista[UNIK],0),2),0)","v":0},{"$f":"IFERROR(INDEX(Lektionslista[],MATCH(SUMPRODUCT((Lektionslista[DAG]=Skolschema[[#Headers],[ONSDAG]])*(ROUNDDOWN($B37,10)>=ROUNDDOWN(Lektionslista[STARTTID],10))*($B37<=Lektionslista[SLUTTID]),Lektionslista[UNIK]),Lektionslista[UNIK],0),2),0)","v":0},{"$f":"IFERROR(INDEX(Lektionslista[],MATCH(SUMPRODUCT((Lektionslista[DAG]=Skolschema[[#Headers],[TORSDAG]])*(ROUNDDOWN($B37,10)>=ROUNDDOWN(Lektionslista[STARTTID],10))*($B37<=Lektionslista[SLUTTID]),Lektionslista[UNIK]),Lektionslista[UNIK],0),2),0)","v":0},{"$f":"IFERROR(INDEX(Lektionslista[],MATCH(SUMPRODUCT((Lektionslista[DAG]=Skolschema[[#Headers],[FREDAG]])*(ROUNDDOWN($B37,10)>=ROUNDDOWN(Lektionslista[STARTTID],10))*($B37<=Lektionslista[SLUTTID]),Lektionslista[UNIK]),Lektionslista[UNIK],0),2),0)","v":0},{"$f":"IFERROR(INDEX(Lektionslista[],MATCH(SUMPRODUCT((Lektionslista[DAG]=Skolschema[[#Headers],[LÖRDAG]])*(ROUNDDOWN($B37,10)>=ROUNDDOWN(Lektionslista[STARTTID],10))*($B37<=Lektionslista[SLUTTID]),Lektionslista[UNIK]),Lektionslista[UNIK],0),2),0)","v":0}]
[null,"16:30:00",{"$f":"IFERROR(INDEX(Lektionslista[],MATCH(SUMPRODUCT((Lektionslista[DAG]=Skolschema[[#Headers],[SÖNDAG]])*(ROUNDDOWN($B38,10)>=ROUNDDOWN(Lektionslista[STARTTID],10))*($B38<=Lektionslista[SLUTTID]),Lektionslista[UNIK]),Lektionslista[UNIK],0),2),0)","v":0},{"$f":"IFERROR(INDEX(Lektionslista[],MATCH(SUMPRODUCT((Lektionslista[DAG]=Skolschema[[#Headers],[MÅNDAG]])*(ROUNDDOWN($B38,10)>=ROUNDDOWN(Lektionslista[STARTTID],10))*($B38<=Lektionslista[SLUTTID]),Lektionslista[UNIK]),Lektionslista[UNIK],0),2),0)","v":"SP-111"},{"$f":"IFERROR(INDEX(Lektionslista[],MATCH(SUMPRODUCT((Lektionslista[DAG]=Skolschema[[#Headers],[TISDAG]])*(ROUNDDOWN($B38,10)>=ROUNDDOWN(Lektionslista[STARTTID],10))*($B38<=Lektionslista[SLUTTID]),Lektionslista[UNIK]),Lektionslista[UNIK],0),2),0)","v":0},{"$f":"IFERROR(INDEX(Lektionslista[],MATCH(SUMPRODUCT((Lektionslista[DAG]=Skolschema[[#Headers],[ONSDAG]])*(ROUNDDOWN($B38,10)>=ROUNDDOWN(Lektionslista[STARTTID],10))*($B38<=Lektionslista[SLUTTID]),Lektionslista[UNIK]),Lektionslista[UNIK],0),2),0)","v":0},{"$f":"IFERROR(INDEX(Lektionslista[],MATCH(SUMPRODUCT((Lektionslista[DAG]=Skolschema[[#Headers],[TORSDAG]])*(ROUNDDOWN($B38,10)>=ROUNDDOWN(Lektionslista[STARTTID],10))*($B38<=Lektionslista[SLUTTID]),Lektionslista[UNIK]),Lektionslista[UNIK],0),2),0)","v":0},{"$f":"IFERROR(INDEX(Lektionslista[],MATCH(SUMPRODUCT((Lektionslista[DAG]=Skolschema[[#Headers],[FREDAG]])*(ROUNDDOWN($B38,10)>=ROUNDDOWN(Lektionslista[STARTTID],10))*($B38<=Lektionslista[SLUTTID]),Lektionslista[UNIK]),Lektionslista[UNIK],0),2),0)","v":0},{"$f":"IFERROR(INDEX(Lektionslista[],MATCH(SUMPRODUCT((Lektionslista[DAG]=Skolschema[[#Headers],[LÖRDAG]])*(ROUNDDOWN($B38,10)>=ROUNDDOWN(Lektionslista[STARTTID],10))*($B38<=Lektionslista[SLUTTID]),Lektionslista[UNIK]),Lektionslista[UNIK],0),2),0)","v":0}]
[null,"16:45:00",{"$f":"IFERROR(INDEX(Lektionslista[],MATCH(SUMPRODUCT((Lektionslista[DAG]=Skolschema[[#Headers],[SÖNDAG]])*(ROUNDDOWN($B39,10)>=ROUNDDOWN(Lektionslista[STARTTID],10))*($B39<=Lektionslista[SLUTTID]),Lektionslista[UNIK]),Lektionslista[UNIK],0),2),0)","v":0},{"$f":"IFERROR(INDEX(Lektionslista[],MATCH(SUMPRODUCT((Lektionslista[DAG]=Skolschema[[#Headers],[MÅNDAG]])*(ROUNDDOWN($B39,10)>=ROUNDDOWN(Lektionslista[STARTTID],10))*($B39<=Lektionslista[SLUTTID]),Lektionslista[UNIK]),Lektionslista[UNIK],0),2),0)","v":"SP-111"},{"$f":"IFERROR(INDEX(Lektionslista[],MATCH(SUMPRODUCT((Lektionslista[DAG]=Skolschema[[#Headers],[TISDAG]])*(ROUNDDOWN($B39,10)>=ROUNDDOWN(Lektionslista[STARTTID],10))*($B39<=Lektionslista[SLUTTID]),Lektionslista[UNIK]),Lektionslista[UNIK],0),2),0)","v":0},{"$f":"IFERROR(INDEX(Lektionslista[],MATCH(SUMPRODUCT((Lektionslista[DAG]=Skolschema[[#Headers],[ONSDAG]])*(ROUNDDOWN($B39,10)>=ROUNDDOWN(Lektionslista[STARTTID],10))*($B39<=Lektionslista[SLUTTID]),Lektionslista[UNIK]),Lektionslista[UNIK],0),2),0)","v":0},{"$f":"IFERROR(INDEX(Lektionslista[],MATCH(SUMPRODUCT((Lektionslista[DAG]=Skolschema[[#Headers],[TORSDAG]])*(ROUNDDOWN($B39,10)>=ROUNDDOWN(Lektionslista[STARTTID],10))*($B39<=Lektionslista[SLUTTID]),Lektionslista[UNIK]),Lektionslista[UNIK],0),2),0)","v":0},{"$f":"IFERROR(INDEX(Lektionslista[],MATCH(SUMPRODUCT((Lektionslista[DAG]=Skolschema[[#Headers],[FREDAG]])*(ROUNDDOWN($B39,10)>=ROUNDDOWN(Lektionslista[STARTTID],10))*($B39<=Lektionslista[SLUTTID]),Lektionslista[UNIK]),Lektionslista[UNIK],0),2),0)","v":0},{"$f":"IFERROR(INDEX(Lektionslista[],MATCH(SUMPRODUCT((Lektionslista[DAG]=Skolschema[[#Headers],[LÖRDAG]])*(ROUNDDOWN($B39,10)>=ROUNDDOWN(Lektionslista[STARTTID],10))*($B39<=Lektionslista[SLUTTID]),Lektionslista[UNIK]),Lektionslista[UNIK],0),2),0)","v":0}]
[null,"17:00:00",{"$f":"IFERROR(INDEX(Lektionslista[],MATCH(SUMPRODUCT((Lektionslista[DAG]=Skolschema[[#Headers],[SÖNDAG]])*(ROUNDDOWN($B40,10)>=ROUNDDOWN(Lektionslista[STARTTID],10))*($B40<=Lektionslista[SLUTTID]),Lektionslista[UNIK]),Lektionslista[UNIK],0),2),0)","v":0},{"$f":"IFERROR(INDEX(Lektionslista[],MATCH(SUMPRODUCT((Lektionslista[DAG]=Skolschema[[#Headers],[MÅNDAG]])*(ROUNDDOWN($B40,10)>=ROUNDDOWN(Lektionslista[STARTTID],10))*($B40<=Lektionslista[SLUTTID]),Lektionslista[UNIK]),Lektionslista[UNIK],0),2),0)","v":"SP-111"},{"$f":"IFERROR(INDEX(Lektionslista[],MATCH(SUMPRODUCT((Lektionslista[DAG]=Skolschema[[#Headers],[TISDAG]])*(ROUNDDOWN($B40,10)>=ROUNDDOWN(Lektionslista[STARTTID],10))*($B40<=Lektionslista[SLUTTID]),Lektionslista[UNIK]),Lektionslista[UNIK],0),2),0)","v":0},{"$f":"IFERROR(INDEX(Lektionslista[],MATCH(SUMPRODUCT((Lektionslista[DAG]=Skolschema[[#Headers],[ONSDAG]])*(ROUNDDOWN($B40,10)>=ROUNDDOWN(Lektionslista[STARTTID],10))*($B40<=Lektionslista[SLUTTID]),Lektionslista[UNIK]),Lektionslista[UNIK],0),2),0)","v":0},{"$f":"IFERROR(INDEX(Lektionslista[],MATCH(SUMPRODUCT((Lektionslista[DAG]=Skolschema[[#Headers],[TORSDAG]])*(ROUNDDOWN($B40,10)>=ROUNDDOWN(Lektionslista[STARTTID],10))*($B40<=Lektionslista[SLUTTID]),Lektionslista[UNIK]),Lektionslista[UNIK],0),2),0)","v":0},{"$f":"IFERROR(INDEX(Lektionslista[],MATCH(SUMPRODUCT((Lektionslista[DAG]=Skolschema[[#Headers],[FREDAG]])*(ROUNDDOWN($B40,10)>=ROUNDDOWN(Lektionslista[STARTTID],10))*($B40<=Lektionslista[SLUTTID]),Lektionslista[UNIK]),Lektionslista[UNIK],0),2),0)","v":0},{"$f":"IFERROR(INDEX(Lektionslista[],MATCH(SUMPRODUCT((Lektionslista[DAG]=Skolschema[[#Headers],[LÖRDAG]])*(ROUNDDOWN($B40,10)>=ROUNDDOWN(Lektionslista[STARTTID],10))*($B40<=Lektionslista[SLUTTID]),Lektionslista[UNIK]),Lektionslista[UNIK],0),2),0)","v":0}]
[null,"17:15:00",{"$f":"IFERROR(INDEX(Lektionslista[],MATCH(SUMPRODUCT((Lektionslista[DAG]=Skolschema[[#Headers],[SÖNDAG]])*(ROUNDDOWN($B41,10)>=ROUNDDOWN(Lektionslista[STARTTID],10))*($B41<=Lektionslista[SLUTTID]),Lektionslista[UNIK]),Lektionslista[UNIK],0),2),0)","v":0},{"$f":"IFERROR(INDEX(Lektionslista[],MATCH(SUMPRODUCT((Lektionslista[DAG]=Skolschema[[#Headers],[MÅNDAG]])*(ROUNDDOWN($B41,10)>=ROUNDDOWN(Lektionslista[STARTTID],10))*($B41<=Lektionslista[SLUTTID]),Lektionslista[UNIK]),Lektionslista[UNIK],0),2),0)","v":0},{"$f":"IFERROR(INDEX(Lektionslista[],MATCH(SUMPRODUCT((Lektionslista[DAG]=Skolschema[[#Headers],[TISDAG]])*(ROUNDDOWN($B41,10)>=ROUNDDOWN(Lektionslista[STARTTID],10))*($B41<=Lektionslista[SLUTTID]),Lektionslista[UNIK]),Lektionslista[UNIK],0),2),0)","v":0},{"$f":"IFERROR(INDEX(Lektionslista[],MATCH(SUMPRODUCT((Lektionslista[DAG]=Skolschema[[#Headers],[ONSDAG]])*(ROUNDDOWN($B41,10)>=ROUNDDOWN(Lektionslista[STARTTID],10))*($B41<=Lektionslista[SLUTTID]),Lektionslista[UNIK]),Lektionslista[UNIK],0),2),0)","v":0},{"$f":"IFERROR(INDEX(Lektionslista[],MATCH(SUMPRODUCT((Lektionslista[DAG]=Skolschema[[#Headers],[TORSDAG]])*(ROUNDDOWN($B41,10)>=ROUNDDOWN(Lektionslista[STARTTID],10))*($B41<=Lektionslista[SLUTTID]),Lektionslista[UNIK]),Lektionslista[UNIK],0),2),0)","v":0},{"$f":"IFERROR(INDEX(Lektionslista[],MATCH(SUMPRODUCT((Lektionslista[DAG]=Skolschema[[#Headers],[FREDAG]])*(ROUNDDOWN($B41,10)>=ROUNDDOWN(Lektionslista[STARTTID],10))*($B41<=Lektionslista[SLUTTID]),Lektionslista[UNIK]),Lektionslista[UNIK],0),2),0)","v":0},{"$f":"IFERROR(INDEX(Lektionslista[],MATCH(SUMPRODUCT((Lektionslista[DAG]=Skolschema[[#Headers],[LÖRDAG]])*(ROUNDDOWN($B41,10)>=ROUNDDOWN(Lektionslista[STARTTID],10))*($B41<=Lektionslista[SLUTTID]),Lektionslista[UNIK]),Lektionslista[UNIK],0),2),0)","v":0}]
[null,"17:30:00",{"$f":"IFERROR(INDEX(Lektionslista[],MATCH(SUMPRODUCT((Lektionslista[DAG]=Skolschema[[#Headers],[SÖNDAG]])*(ROUNDDOWN($B42,10)>=ROUNDDOWN(Lektionslista[STARTTID],10))*($B42<=Lektionslista[SLUTTID]),Lektionslista[UNIK]),Lektionslista[UNIK],0),2),0)","v":0},{"$f":"IFERROR(INDEX(Lektionslista[],MATCH(SUMPRODUCT((Lektionslista[DAG]=Skolschema[[#Headers],[MÅNDAG]])*(ROUNDDOWN($B42,10)>=ROUNDDOWN(Lektionslista[STARTTID],10))*($B42<=Lektionslista[SLUTTID]),Lektionslista[UNIK]),Lektionslista[UNIK],0),2),0)","v":0},{"$f":"IFERROR(INDEX(Lektionslista[],MATCH(SUMPRODUCT((Lektionslista[DAG]=Skolschema[[#Headers],[TISDAG]])*(ROUNDDOWN($B42,10)>=ROUNDDOWN(Lektionslista[STARTTID],10))*($B42<=Lektionslista[SLUTTID]),Lektionslista[UNIK]),Lektionslista[UNIK],0),2),0)","v":0},{"$f":"IFERROR(INDEX(Lektionslista[],MATCH(SUMPRODUCT((Lektionslista[DAG]=Skolschema[[#Headers],[ONSDAG]])*(ROUNDDOWN($B42,10)>=ROUNDDOWN(Lektionslista[STARTTID],10))*($B42<=Lektionslista[SLUTTID]),Lektionslista[UNIK]),Lektionslista[UNIK],0),2),0)","v":0},{"$f":"IFERROR(INDEX(Lektionslista[],MATCH(SUMPRODUCT((Lektionslista[DAG]=Skolschema[[#Headers],[TORSDAG]])*(ROUNDDOWN($B42,10)>=ROUNDDOWN(Lektionslista[STARTTID],10))*($B42<=Lektionslista[SLUTTID]),Lektionslista[UNIK]),Lektionslista[UNIK],0),2),0)","v":0},{"$f":"IFERROR(INDEX(Lektionslista[],MATCH(SUMPRODUCT((Lektionslista[DAG]=Skolschema[[#Headers],[FREDAG]])*(ROUNDDOWN($B42,10)>=ROUNDDOWN(Lektionslista[STARTTID],10))*($B42<=Lektionslista[SLUTTID]),Lektionslista[UNIK]),Lektionslista[UNIK],0),2),0)","v":0},{"$f":"IFERROR(INDEX(Lektionslista[],MATCH(SUMPRODUCT((Lektionslista[DAG]=Skolschema[[#Headers],[LÖRDAG]])*(ROUNDDOWN($B42,10)>=ROUNDDOWN(Lektionslista[STARTTID],10))*($B42<=Lektionslista[SLUTTID]),Lektionslista[UNIK]),Lektionslista[UNIK],0),2),0)","v":0}]
[null,"17:45:00",{"$f":"IFERROR(INDEX(Lektionslista[],MATCH(SUMPRODUCT((Lektionslista[DAG]=Skolschema[[#Headers],[SÖNDAG]])*(ROUNDDOWN($B43,10)>=ROUNDDOWN(Lektionslista[STARTTID],10))*($B43<=Lektionslista[SLUTTID]),Lektionslista[UNIK]),Lektionslista[UNIK],0),2),0)","v":0},{"$f":"IFERROR(INDEX(Lektionslista[],MATCH(SUMPRODUCT((Lektionslista[DAG]=Skolschema[[#Headers],[MÅNDAG]])*(ROUNDDOWN($B43,10)>=ROUNDDOWN(Lektionslista[STARTTID],10))*($B43<=Lektionslista[SLUTTID]),Lektionslista[UNIK]),Lektionslista[UNIK],0),2),0)","v":0},{"$f":"IFERROR(INDEX(Lektionslista[],MATCH(SUMPRODUCT((Lektionslista[DAG]=Skolschema[[#Headers],[TISDAG]])*(ROUNDDOWN($B43,10)>=ROUNDDOWN(Lektionslista[STARTTID],10))*($B43<=Lektionslista[SLUTTID]),Lektionslista[UNIK]),Lektionslista[UNIK],0),2),0)","v":0},{"$f":"IFERROR(INDEX(Lektionslista[],MATCH(SUMPRODUCT((Lektionslista[DAG]=Skolschema[[#Headers],[ONSDAG]])*(ROUNDDOWN($B43,10)>=ROUNDDOWN(Lektionslista[STARTTID],10))*($B43<=Lektionslista[SLUTTID]),Lektionslista[UNIK]),Lektionslista[UNIK],0),2),0)","v":0},{"$f":"IFERROR(INDEX(Lektionslista[],MATCH(SUMPRODUCT((Lektionslista[DAG]=Skolschema[[#Headers],[TORSDAG]])*(ROUNDDOWN($B43,10)>=ROUNDDOWN(Lektionslista[STARTTID],10))*($B43<=Lektionslista[SLUTTID]),Lektionslista[UNIK]),Lektionslista[UNIK],0),2),0)","v":0},{"$f":"IFERROR(INDEX(Lektionslista[],MATCH(SUMPRODUCT((Lektionslista[DAG]=Skolschema[[#Headers],[FREDAG]])*(ROUNDDOWN($B43,10)>=ROUNDDOWN(Lektionslista[STARTTID],10))*($B43<=Lektionslista[SLUTTID]),Lektionslista[UNIK]),Lektionslista[UNIK],0),2),0)","v":0},{"$f":"IFERROR(INDEX(Lektionslista[],MATCH(SUMPRODUCT((Lektionslista[DAG]=Skolschema[[#Headers],[LÖRDAG]])*(ROUNDDOWN($B43,10)>=ROUNDDOWN(Lektionslista[STARTTID],10))*($B43<=Lektionslista[SLUTTID]),Lektionslista[UNIK]),Lektionslista[UNIK],0),2),0)","v":0}]
[null,"18:00:00",{"$f":"IFERROR(INDEX(Lektionslista[],MATCH(SUMPRODUCT((Lektionslista[DAG]=Skolschema[[#Headers],[SÖNDAG]])*(ROUNDDOWN($B44,10)>=ROUNDDOWN(Lektionslista[STARTTID],10))*($B44<=Lektionslista[SLUTTID]),Lektionslista[UNIK]),Lektionslista[UNIK],0),2),0)","v":0},{"$f":"IFERROR(INDEX(Lektionslista[],MATCH(SUMPRODUCT((Lektionslista[DAG]=Skolschema[[#Headers],[MÅNDAG]])*(ROUNDDOWN($B44,10)>=ROUNDDOWN(Lektionslista[STARTTID],10))*($B44<=Lektionslista[SLUTTID]),Lektionslista[UNIK]),Lektionslista[UNIK],0),2),0)","v":0},{"$f":"IFERROR(INDEX(Lektionslista[],MATCH(SUMPRODUCT((Lektionslista[DAG]=Skolschema[[#Headers],[TISDAG]])*(ROUNDDOWN($B44,10)>=ROUNDDOWN(Lektionslista[STARTTID],10))*($B44<=Lektionslista[SLUTTID]),Lektionslista[UNIK]),Lektionslista[UNIK],0),2),0)","v":0},{"$f":"IFERROR(INDEX(Lektionslista[],MATCH(SUMPRODUCT((Lektionslista[DAG]=Skolschema[[#Headers],[ONSDAG]])*(ROUNDDOWN($B44,10)>=ROUNDDOWN(Lektionslista[STARTTID],10))*($B44<=Lektionslista[SLUTTID]),Lektionslista[UNIK]),Lektionslista[UNIK],0),2),0)","v":0},{"$f":"IFERROR(INDEX(Lektionslista[],MATCH(SUMPRODUCT((Lektionslista[DAG]=Skolschema[[#Headers],[TORSDAG]])*(ROUNDDOWN($B44,10)>=ROUNDDOWN(Lektionslista[STARTTID],10))*($B44<=Lektionslista[SLUTTID]),Lektionslista[UNIK]),Lektionslista[UNIK],0),2),0)","v":0},{"$f":"IFERROR(INDEX(Lektionslista[],MATCH(SUMPRODUCT((Lektionslista[DAG]=Skolschema[[#Headers],[FREDAG]])*(ROUNDDOWN($B44,10)>=ROUNDDOWN(Lektionslista[STARTTID],10))*($B44<=Lektionslista[SLUTTID]),Lektionslista[UNIK]),Lektionslista[UNIK],0),2),0)","v":0},{"$f":"IFERROR(INDEX(Lektionslista[],MATCH(SUMPRODUCT((Lektionslista[DAG]=Skolschema[[#Headers],[LÖRDAG]])*(ROUNDDOWN($B44,10)>=ROUNDDOWN(Lektionslista[STARTTID],10))*($B44<=Lektionslista[SLUTTID]),Lektionslista[UNIK]),Lektionslista[UNIK],0),2),0)","v":0}]
[null,"18:15:00",{"$f":"IFERROR(INDEX(Lektionslista[],MATCH(SUMPRODUCT((Lektionslista[DAG]=Skolschema[[#Headers],[SÖNDAG]])*(ROUNDDOWN($B45,10)>=ROUNDDOWN(Lektionslista[STARTTID],10))*($B45<=Lektionslista[SLUTTID]),Lektionslista[UNIK]),Lektionslista[UNIK],0),2),0)","v":0},{"$f":"IFERROR(INDEX(Lektionslista[],MATCH(SUMPRODUCT((Lektionslista[DAG]=Skolschema[[#Headers],[MÅNDAG]])*(ROUNDDOWN($B45,10)>=ROUNDDOWN(Lektionslista[STARTTID],10))*($B45<=Lektionslista[SLUTTID]),Lektionslista[UNIK]),Lektionslista[UNIK],0),2),0)","v":0},{"$f":"IFERROR(INDEX(Lektionslista[],MATCH(SUMPRODUCT((Lektionslista[DAG]=Skolschema[[#Headers],[TISDAG]])*(ROUNDDOWN($B45,10)>=ROUNDDOWN(Lektionslista[STARTTID],10))*($B45<=Lektionslista[SLUTTID]),Lektionslista[UNIK]),Lektionslista[UNIK],0),2),0)","v":0},{"$f":"IFERROR(INDEX(Lektionslista[],MATCH(SUMPRODUCT((Lektionslista[DAG]=Skolschema[[#Headers],[ONSDAG]])*(ROUNDDOWN($B45,10)>=ROUNDDOWN(Lektionslista[STARTTID],10))*($B45<=Lektionslista[SLUTTID]),Lektionslista[UNIK]),Lektionslista[UNIK],0),2),0)","v":0},{"$f":"IFERROR(INDEX(Lektionslista[],MATCH(SUMPRODUCT((Lektionslista[DAG]=Skolschema[[#Headers],[TORSDAG]])*(ROUNDDOWN($B45,10)>=ROUNDDOWN(Lektionslista[STARTTID],10))*($B45<=Lektionslista[SLUTTID]),Lektionslista[UNIK]),Lektionslista[UNIK],0),2),0)","v":0},{"$f":"IFERROR(INDEX(Lektionslista[],MATCH(SUMPRODUCT((Lektionslista[DAG]=Skolschema[[#Headers],[FREDAG]])*(ROUNDDOWN($B45,10)>=ROUNDDOWN(Lektionslista[STARTTID],10))*($B45<=Lektionslista[SLUTTID]),Lektionslista[UNIK]),Lektionslista[UNIK],0),2),0)","v":0},{"$f":"IFERROR(INDEX(Lektionslista[],MATCH(SUMPRODUCT((Lektionslista[DAG]=Skolschema[[#Headers],[LÖRDAG]])*(ROUNDDOWN($B45,10)>=ROUNDDOWN(Lektionslista[STARTTID],10))*($B45<=Lektionslista[SLUTTID]),Lektionslista[UNIK]),Lektionslista[UNIK],0),2),0)","v":0}]
[null,"18:30:00",{"$f":"IFERROR(INDEX(Lektionslista[],MATCH(SUMPRODUCT((Lektionslista[DAG]=Skolschema[[#Headers],[SÖNDAG]])*(ROUNDDOWN($B46,10)>=ROUNDDOWN(Lektionslista[STARTTID],10))*($B46<=Lektionslista[SLUTTID]),Lektionslista[UNIK]),Lektionslista[UNIK],0),2),0)","v":0},{"$f":"IFERROR(INDEX(Lektionslista[],MATCH(SUMPRODUCT((Lektionslista[DAG]=Skolschema[[#Headers],[MÅNDAG]])*(ROUNDDOWN($B46,10)>=ROUNDDOWN(Lektionslista[STARTTID],10))*($B46<=Lektionslista[SLUTTID]),Lektionslista[UNIK]),Lektionslista[UNIK],0),2),0)","v":0},{"$f":"IFERROR(INDEX(Lektionslista[],MATCH(SUMPRODUCT((Lektionslista[DAG]=Skolschema[[#Headers],[TISDAG]])*(ROUNDDOWN($B46,10)>=ROUNDDOWN(Lektionslista[STARTTID],10))*($B46<=Lektionslista[SLUTTID]),Lektionslista[UNIK]),Lektionslista[UNIK],0),2),0)","v":0},{"$f":"IFERROR(INDEX(Lektionslista[],MATCH(SUMPRODUCT((Lektionslista[DAG]=Skolschema[[#Headers],[ONSDAG]])*(ROUNDDOWN($B46,10)>=ROUNDDOWN(Lektionslista[STARTTID],10))*($B46<=Lektionslista[SLUTTID]),Lektionslista[UNIK]),Lektionslista[UNIK],0),2),0)","v":0},{"$f":"IFERROR(INDEX(Lektionslista[],MATCH(SUMPRODUCT((Lektionslista[DAG]=Skolschema[[#Headers],[TORSDAG]])*(ROUNDDOWN($B46,10)>=ROUNDDOWN(Lektionslista[STARTTID],10))*($B46<=Lektionslista[SLUTTID]),Lektionslista[UNIK]),Lektionslista[UNIK],0),2),0)","v":0},{"$f":"IFERROR(INDEX(Lektionslista[],MATCH(SUMPRODUCT((Lektionslista[DAG]=Skolschema[[#Headers],[FREDAG]])*(ROUNDDOWN($B46,10)>=ROUNDDOWN(Lektionslista[STARTTID],10))*($B46<=Lektionslista[SLUTTID]),Lektionslista[UNIK]),Lektionslista[UNIK],0),2),0)","v":0},{"$f":"IFERROR(INDEX(Lektionslista[],MATCH(SUMPRODUCT((Lektionslista[DAG]=Skolschema[[#Headers],[LÖRDAG]])*(ROUNDDOWN($B46,10)>=ROUNDDOWN(Lektionslista[STARTTID],10))*($B46<=Lektionslista[SLUTTID]),Lektionslista[UNIK]),Lektionslista[UNIK],0),2),0)","v":0}]
[null,"18:45:00",{"$f":"IFERROR(INDEX(Lektionslista[],MATCH(SUMPRODUCT((Lektionslista[DAG]=Skolschema[[#Headers],[SÖNDAG]])*(ROUNDDOWN($B47,10)>=ROUNDDOWN(Lektionslista[STARTTID],10))*($B47<=Lektionslista[SLUTTID]),Lektionslista[UNIK]),Lektionslista[UNIK],0),2),0)","v":0},{"$f":"IFERROR(INDEX(Lektionslista[],MATCH(SUMPRODUCT((Lektionslista[DAG]=Skolschema[[#Headers],[MÅNDAG]])*(ROUNDDOWN($B47,10)>=ROUNDDOWN(Lektionslista[STARTTID],10))*($B47<=Lektionslista[SLUTTID]),Lektionslista[UNIK]),Lektionslista[UNIK],0),2),0)","v":0},{"$f":"IFERROR(INDEX(Lektionslista[],MATCH(SUMPRODUCT((Lektionslista[DAG]=Skolschema[[#Headers],[TISDAG]])*(ROUNDDOWN($B47,10)>=ROUNDDOWN(Lektionslista[STARTTID],10))*($B47<=Lektionslista[SLUTTID]),Lektionslista[UNIK]),Lektionslista[UNIK],0),2),0)","v":0},{"$f":"IFERROR(INDEX(Lektionslista[],MATCH(SUMPRODUCT((Lektionslista[DAG]=Skolschema[[#Headers],[ONSDAG]])*(ROUNDDOWN($B47,10)>=ROUNDDOWN(Lektionslista[STARTTID],10))*($B47<=Lektionslista[SLUTTID]),Lektionslista[UNIK]),Lektionslista[UNIK],0),2),0)","v":0},{"$f":"IFERROR(INDEX(Lektionslista[],MATCH(SUMPRODUCT((Lektionslista[DAG]=Skolschema[[#Headers],[TORSDAG]])*(ROUNDDOWN($B47,10)>=ROUNDDOWN(Lektionslista[STARTTID],10))*($B47<=Lektionslista[SLUTTID]),Lektionslista[UNIK]),Lektionslista[UNIK],0),2),0)","v":0},{"$f":"IFERROR(INDEX(Lektionslista[],MATCH(SUMPRODUCT((Lektionslista[DAG]=Skolschema[[#Headers],[FREDAG]])*(ROUNDDOWN($B47,10)>=ROUNDDOWN(Lektionslista[STARTTID],10))*($B47<=Lektionslista[SLUTTID]),Lektionslista[UNIK]),Lektionslista[UNIK],0),2),0)","v":0},{"$f":"IFERROR(INDEX(Lektionslista[],MATCH(SUMPRODUCT((Lektionslista[DAG]=Skolschema[[#Headers],[LÖRDAG]])*(ROUNDDOWN($B47,10)>=ROUNDDOWN(Lektionslista[STARTTID],10))*($B47<=Lektionslista[SLUTTID]),Lektionslista[UNIK]),Lektionslista[UNIK],0),2),0)","v":0}]
[null,"19:00:00",{"$f":"IFERROR(INDEX(Lektionslista[],MATCH(SUMPRODUCT((Lektionslista[DAG]=Skolschema[[#Headers],[SÖNDAG]])*(ROUNDDOWN($B48,10)>=ROUNDDOWN(Lektionslista[STARTTID],10))*($B48<=Lektionslista[SLUTTID]),Lektionslista[UNIK]),Lektionslista[UNIK],0),2),0)","v":0},{"$f":"IFERROR(INDEX(Lektionslista[],MATCH(SUMPRODUCT((Lektionslista[DAG]=Skolschema[[#Headers],[MÅNDAG]])*(ROUNDDOWN($B48,10)>=ROUNDDOWN(Lektionslista[STARTTID],10))*($B48<=Lektionslista[SLUTTID]),Lektionslista[UNIK]),Lektionslista[UNIK],0),2),0)","v":0},{"$f":"IFERROR(INDEX(Lektionslista[],MATCH(SUMPRODUCT((Lektionslista[DAG]=Skolschema[[#Headers],[TISDAG]])*(ROUNDDOWN($B48,10)>=ROUNDDOWN(Lektionslista[STARTTID],10))*($B48<=Lektionslista[SLUTTID]),Lektionslista[UNIK]),Lektionslista[UNIK],0),2),0)","v":0},{"$f":"IFERROR(INDEX(Lektionslista[],MATCH(SUMPRODUCT((Lektionslista[DAG]=Skolschema[[#Headers],[ONSDAG]])*(ROUNDDOWN($B48,10)>=ROUNDDOWN(Lektionslista[STARTTID],10))*($B48<=Lektionslista[SLUTTID]),Lektionslista[UNIK]),Lektionslista[UNIK],0),2),0)","v":0},{"$f":"IFERROR(INDEX(Lektionslista[],MATCH(SUMPRODUCT((Lektionslista[DAG]=Skolschema[[#Headers],[TORSDAG]])*(ROUNDDOWN($B48,10)>=ROUNDDOWN(Lektionslista[STARTTID],10))*($B48<=Lektionslista[SLUTTID]),Lektionslista[UNIK]),Lektionslista[UNIK],0),2),0)","v":0},{"$f":"IFERROR(INDEX(Lektionslista[],MATCH(SUMPRODUCT((Lektionslista[DAG]=Skolschema[[#Headers],[FREDAG]])*(ROUNDDOWN($B48,10)>=ROUNDDOWN(Lektionslista[STARTTID],10))*($B48<=Lektionslista[SLUTTID]),Lektionslista[UNIK]),Lektionslista[UNIK],0),2),0)","v":0},{"$f":"IFERROR(INDEX(Lektionslista[],MATCH(SUMPRODUCT((Lektionslista[DAG]=Skolschema[[#Headers],[LÖRDAG]])*(ROUNDDOWN($B48,10)>=ROUNDDOWN(Lektionslista[STARTTID],10))*($B48<=Lektionslista[SLUTTID]),Lektionslista[UNIK]),Lektionslista[UNIK],0),2),0)","v":0}]
[null,"19:15:00",{"$f":"IFERROR(INDEX(Lektionslista[],MATCH(SUMPRODUCT((Lektionslista[DAG]=Skolschema[[#Headers],[SÖNDAG]])*(ROUNDDOWN($B49,10)>=ROUNDDOWN(Lektionslista[STARTTID],10))*($B49<=Lektionslista[SLUTTID]),Lektionslista[UNIK]),Lektionslista[UNIK],0),2),0)","v":0},{"$f":"IFERROR(INDEX(Lektionslista[],MATCH(SUMPRODUCT((Lektionslista[DAG]=Skolschema[[#Headers],[MÅNDAG]])*(ROUNDDOWN($B49,10)>=ROUNDDOWN(Lektionslista[STARTTID],10))*($B49<=Lektionslista[SLUTTID]),Lektionslista[UNIK]),Lektionslista[UNIK],0),2),0)","v":0},{"$f":"IFERROR(INDEX(Lektionslista[],MATCH(SUMPRODUCT((Lektionslista[DAG]=Skolschema[[#Headers],[TISDAG]])*(ROUNDDOWN($B49,10)>=ROUNDDOWN(Lektionslista[STARTTID],10))*($B49<=Lektionslista[SLUTTID]),Lektionslista[UNIK]),Lektionslista[UNIK],0),2),0)","v":0},{"$f":"IFERROR(INDEX(Lektionslista[],MATCH(SUMPRODUCT((Lektionslista[DAG]=Skolschema[[#Headers],[ONSDAG]])*(ROUNDDOWN($B49,10)>=ROUNDDOWN(Lektionslista[STARTTID],10))*($B49<=Lektionslista[SLUTTID]),Lektionslista[UNIK]),Lektionslista[UNIK],0),2),0)","v":0},{"$f":"IFERROR(INDEX(Lektionslista[],MATCH(SUMPRODUCT((Lektionslista[DAG]=Skolschema[[#Headers],[TORSDAG]])*(ROUNDDOWN($B49,10)>=ROUNDDOWN(Lektionslista[STARTTID],10))*($B49<=Lektionslista[SLUTTID]),Lektionslista[UNIK]),Lektionslista[UNIK],0),2),0)","v":0},{"$f":"IFERROR(INDEX(Lektionslista[],MATCH(SUMPRODUCT((Lektionslista[DAG]=Skolschema[[#Headers],[FREDAG]])*(ROUNDDOWN($B49,10)>=ROUNDDOWN(Lektionslista[STARTTID],10))*($B49<=Lektionslista[SLUTTID]),Lektionslista[UNIK]),Lektionslista[UNIK],0),2),0)","v":0},{"$f":"IFERROR(INDEX(Lektionslista[],MATCH(SUMPRODUCT((Lektionslista[DAG]=Skolschema[[#Headers],[LÖRDAG]])*(ROUNDDOWN($B49,10)>=ROUNDDOWN(Lektionslista[STARTTID],10))*($B49<=Lektionslista[SLUTTID]),Lektionslista[UNIK]),Lektionslista[UNIK],0),2),0)","v":0}]
[null,"19:30:00",{"$f":"IFERROR(INDEX(Lektionslista[],MATCH(SUMPRODUCT((Lektionslista[DAG]=Skolschema[[#Headers],[SÖNDAG]])*(ROUNDDOWN($B50,10)>=ROUNDDOWN(Lektionslista[STARTTID],10))*($B50<=Lektionslista[SLUTTID]),Lektionslista[UNIK]),Lektionslista[UNIK],0),2),0)","v":0},{"$f":"IFERROR(INDEX(Lektionslista[],MATCH(SUMPRODUCT((Lektionslista[DAG]=Skolschema[[#Headers],[MÅNDAG]])*(ROUNDDOWN($B50,10)>=ROUNDDOWN(Lektionslista[STARTTID],10))*($B50<=Lektionslista[SLUTTID]),Lektionslista[UNIK]),Lektionslista[UNIK],0),2),0)","v":0},{"$f":"IFERROR(INDEX(Lektionslista[],MATCH(SUMPRODUCT((Lektionslista[DAG]=Skolschema[[#Headers],[TISDAG]])*(ROUNDDOWN($B50,10)>=ROUNDDOWN(Lektionslista[STARTTID],10))*($B50<=Lektionslista[SLUTTID]),Lektionslista[UNIK]),Lektionslista[UNIK],0),2),0)","v":0},{"$f":"IFERROR(INDEX(Lektionslista[],MATCH(SUMPRODUCT((Lektionslista[DAG]=Skolschema[[#Headers],[ONSDAG]])*(ROUNDDOWN($B50,10)>=ROUNDDOWN(Lektionslista[STARTTID],10))*($B50<=Lektionslista[SLUTTID]),Lektionslista[UNIK]),Lektionslista[UNIK],0),2),0)","v":0},{"$f":"IFERROR(INDEX(Lektionslista[],MATCH(SUMPRODUCT((Lektionslista[DAG]=Skolschema[[#Headers],[TORSDAG]])*(ROUNDDOWN($B50,10)>=ROUNDDOWN(Lektionslista[STARTTID],10))*($B50<=Lektionslista[SLUTTID]),Lektionslista[UNIK]),Lektionslista[UNIK],0),2),0)","v":0},{"$f":"IFERROR(INDEX(Lektionslista[],MATCH(SUMPRODUCT((Lektionslista[DAG]=Skolschema[[#Headers],[FREDAG]])*(ROUNDDOWN($B50,10)>=ROUNDDOWN(Lektionslista[STARTTID],10))*($B50<=Lektionslista[SLUTTID]),Lektionslista[UNIK]),Lektionslista[UNIK],0),2),0)","v":0},{"$f":"IFERROR(INDEX(Lektionslista[],MATCH(SUMPRODUCT((Lektionslista[DAG]=Skolschema[[#Headers],[LÖRDAG]])*(ROUNDDOWN($B50,10)>=ROUNDDOWN(Lektionslista[STARTTID],10))*($B50<=Lektionslista[SLUTTID]),Lektionslista[UNIK]),Lektionslista[UNIK],0),2),0)","v":0}]
[null,"19:45:00",{"$f":"IFERROR(INDEX(Lektionslista[],MATCH(SUMPRODUCT((Lektionslista[DAG]=Skolschema[[#Headers],[SÖNDAG]])*(ROUNDDOWN($B51,10)>=ROUNDDOWN(Lektionslista[STARTTID],10))*($B51<=Lektionslista[SLUTTID]),Lektionslista[UNIK]),Lektionslista[UNIK],0),2),0)","v":0},{"$f":"IFERROR(INDEX(Lektionslista[],MATCH(SUMPRODUCT((Lektionslista[DAG]=Skolschema[[#Headers],[MÅNDAG]])*(ROUNDDOWN($B51,10)>=ROUNDDOWN(Lektionslista[STARTTID],10))*($B51<=Lektionslista[SLUTTID]),Lektionslista[UNIK]),Lektionslista[UNIK],0),2),0)","v":0},{"$f":"IFERROR(INDEX(Lektionslista[],MATCH(SUMPRODUCT((Lektionslista[DAG]=Skolschema[[#Headers],[TISDAG]])*(ROUNDDOWN($B51,10)>=ROUNDDOWN(Lektionslista[STARTTID],10))*($B51<=Lektionslista[SLUTTID]),Lektionslista[UNIK]),Lektionslista[UNIK],0),2),0)","v":0},{"$f":"IFERROR(INDEX(Lektionslista[],MATCH(SUMPRODUCT((Lektionslista[DAG]=Skolschema[[#Headers],[ONSDAG]])*(ROUNDDOWN($B51,10)>=ROUNDDOWN(Lektionslista[STARTTID],10))*($B51<=Lektionslista[SLUTTID]),Lektionslista[UNIK]),Lektionslista[UNIK],0),2),0)","v":0},{"$f":"IFERROR(INDEX(Lektionslista[],MATCH(SUMPRODUCT((Lektionslista[DAG]=Skolschema[[#Headers],[TORSDAG]])*(ROUNDDOWN($B51,10)>=ROUNDDOWN(Lektionslista[STARTTID],10))*($B51<=Lektionslista[SLUTTID]),Lektionslista[UNIK]),Lektionslista[UNIK],0),2),0)","v":0},{"$f":"IFERROR(INDEX(Lektionslista[],MATCH(SUMPRODUCT((Lektionslista[DAG]=Skolschema[[#Headers],[FREDAG]])*(ROUNDDOWN($B51,10)>=ROUNDDOWN(Lektionslista[STARTTID],10))*($B51<=Lektionslista[SLUTTID]),Lektionslista[UNIK]),Lektionslista[UNIK],0),2),0)","v":0},{"$f":"IFERROR(INDEX(Lektionslista[],MATCH(SUMPRODUCT((Lektionslista[DAG]=Skolschema[[#Headers],[LÖRDAG]])*(ROUNDDOWN($B51,10)>=ROUNDDOWN(Lektionslista[STARTTID],10))*($B51<=Lektionslista[SLUTTID]),Lektionslista[UNIK]),Lektionslista[UNIK],0),2),0)","v":0}]
[null,"20:00:00",{"$f":"IFERROR(INDEX(Lektionslista[],MATCH(SUMPRODUCT((Lektionslista[DAG]=Skolschema[[#Headers],[SÖNDAG]])*(ROUNDDOWN($B52,10)>=ROUNDDOWN(Lektionslista[STARTTID],10))*($B52<=Lektionslista[SLUTTID]),Lektionslista[UNIK]),Lektionslista[UNIK],0),2),0)","v":0},{"$f":"IFERROR(INDEX(Lektionslista[],MATCH(SUMPRODUCT((Lektionslista[DAG]=Skolschema[[#Headers],[MÅNDAG]])*(ROUNDDOWN($B52,10)>=ROUNDDOWN(Lektionslista[STARTTID],10))*($B52<=Lektionslista[SLUTTID]),Lektionslista[UNIK]),Lektionslista[UNIK],0),2),0)","v":0},{"$f":"IFERROR(INDEX(Lektionslista[],MATCH(SUMPRODUCT((Lektionslista[DAG]=Skolschema[[#Headers],[TISDAG]])*(ROUNDDOWN($B52,10)>=ROUNDDOWN(Lektionslista[STARTTID],10))*($B52<=Lektionslista[SLUTTID]),Lektionslista[UNIK]),Lektionslista[UNIK],0),2),0)","v":0},{"$f":"IFERROR(INDEX(Lektionslista[],MATCH(SUMPRODUCT((Lektionslista[DAG]=Skolschema[[#Headers],[ONSDAG]])*(ROUNDDOWN($B52,10)>=ROUNDDOWN(Lektionslista[STARTTID],10))*($B52<=Lektionslista[SLUTTID]),Lektionslista[UNIK]),Lektionslista[UNIK],0),2),0)","v":0},{"$f":"IFERROR(INDEX(Lektionslista[],MATCH(SUMPRODUCT((Lektionslista[DAG]=Skolschema[[#Headers],[TORSDAG]])*(ROUNDDOWN($B52,10)>=ROUNDDOWN(Lektionslista[STARTTID],10))*($B52<=Lektionslista[SLUTTID]),Lektionslista[UNIK]),Lektionslista[UNIK],0),2),0)","v":0},{"$f":"IFERROR(INDEX(Lektionslista[],MATCH(SUMPRODUCT((Lektionslista[DAG]=Skolschema[[#Headers],[FREDAG]])*(ROUNDDOWN($B52,10)>=ROUNDDOWN(Lektionslista[STARTTID],10))*($B52<=Lektionslista[SLUTTID]),Lektionslista[UNIK]),Lektionslista[UNIK],0),2),0)","v":0},{"$f":"IFERROR(INDEX(Lektionslista[],MATCH(SUMPRODUCT((Lektionslista[DAG]=Skolschema[[#Headers],[LÖRDAG]])*(ROUNDDOWN($B52,10)>=ROUNDDOWN(Lektionslista[STARTTID],10))*($B52<=Lektionslista[SLUTTID]),Lektionslista[UNIK]),Lektionslista[UNIK],0),2),0)","v":0}]
[null,"20:15:00",{"$f":"IFERROR(INDEX(Lektionslista[],MATCH(SUMPRODUCT((Lektionslista[DAG]=Skolschema[[#Headers],[SÖNDAG]])*(ROUNDDOWN($B53,10)>=ROUNDDOWN(Lektionslista[STARTTID],10))*($B53<=Lektionslista[SLUTTID]),Lektionslista[UNIK]),Lektionslista[UNIK],0),2),0)","v":0},{"$f":"IFERROR(INDEX(Lektionslista[],MATCH(SUMPRODUCT((Lektionslista[DAG]=Skolschema[[#Headers],[MÅNDAG]])*(ROUNDDOWN($B53,10)>=ROUNDDOWN(Lektionslista[STARTTID],10))*($B53<=Lektionslista[SLUTTID]),Lektionslista[UNIK]),Lektionslista[UNIK],0),2),0)","v":0},{"$f":"IFERROR(INDEX(Lektionslista[],MATCH(SUMPRODUCT((Lektionslista[DAG]=Skolschema[[#Headers],[TISDAG]])*(ROUNDDOWN($B53,10)>=ROUNDDOWN(Lektionslista[STARTTID],10))*($B53<=Lektionslista[SLUTTID]),Lektionslista[UNIK]),Lektionslista[UNIK],0),2),0)","v":0},{"$f":"IFERROR(INDEX(Lektionslista[],MATCH(SUMPRODUCT((Lektionslista[DAG]=Skolschema[[#Headers],[ONSDAG]])*(ROUNDDOWN($B53,10)>=ROUNDDOWN(Lektionslista[STARTTID],10))*($B53<=Lektionslista[SLUTTID]),Lektionslista[UNIK]),Lektionslista[UNIK],0),2),0)","v":0},{"$f":"IFERROR(INDEX(Lektionslista[],MATCH(SUMPRODUCT((Lektionslista[DAG]=Skolschema[[#Headers],[TORSDAG]])*(ROUNDDOWN($B53,10)>=ROUNDDOWN(Lektionslista[STARTTID],10))*($B53<=Lektionslista[SLUTTID]),Lektionslista[UNIK]),Lektionslista[UNIK],0),2),0)","v":0},{"$f":"IFERROR(INDEX(Lektionslista[],MATCH(SUMPRODUCT((Lektionslista[DAG]=Skolschema[[#Headers],[FREDAG]])*(ROUNDDOWN($B53,10)>=ROUNDDOWN(Lektionslista[STARTTID],10))*($B53<=Lektionslista[SLUTTID]),Lektionslista[UNIK]),Lektionslista[UNIK],0),2),0)","v":0},{"$f":"IFERROR(INDEX(Lektionslista[],MATCH(SUMPRODUCT((Lektionslista[DAG]=Skolschema[[#Headers],[LÖRDAG]])*(ROUNDDOWN($B53,10)>=ROUNDDOWN(Lektionslista[STARTTID],10))*($B53<=Lektionslista[SLUTTID]),Lektionslista[UNIK]),Lektionslista[UNIK],0),2),0)","v":0}]
[null,"20:30:00",{"$f":"IFERROR(INDEX(Lektionslista[],MATCH(SUMPRODUCT((Lektionslista[DAG]=Skolschema[[#Headers],[SÖNDAG]])*(ROUNDDOWN($B54,10)>=ROUNDDOWN(Lektionslista[STARTTID],10))*($B54<=Lektionslista[SLUTTID]),Lektionslista[UNIK]),Lektionslista[UNIK],0),2),0)","v":0},{"$f":"IFERROR(INDEX(Lektionslista[],MATCH(SUMPRODUCT((Lektionslista[DAG]=Skolschema[[#Headers],[MÅNDAG]])*(ROUNDDOWN($B54,10)>=ROUNDDOWN(Lektionslista[STARTTID],10))*($B54<=Lektionslista[SLUTTID]),Lektionslista[UNIK]),Lektionslista[UNIK],0),2),0)","v":0},{"$f":"IFERROR(INDEX(Lektionslista[],MATCH(SUMPRODUCT((Lektionslista[DAG]=Skolschema[[#Headers],[TISDAG]])*(ROUNDDOWN($B54,10)>=ROUNDDOWN(Lektionslista[STARTTID],10))*($B54<=Lektionslista[SLUTTID]),Lektionslista[UNIK]),Lektionslista[UNIK],0),2),0)","v":0},{"$f":"IFERROR(INDEX(Lektionslista[],MATCH(SUMPRODUCT((Lektionslista[DAG]=Skolschema[[#Headers],[ONSDAG]])*(ROUNDDOWN($B54,10)>=ROUNDDOWN(Lektionslista[STARTTID],10))*($B54<=Lektionslista[SLUTTID]),Lektionslista[UNIK]),Lektionslista[UNIK],0),2),0)","v":0},{"$f":"IFERROR(INDEX(Lektionslista[],MATCH(SUMPRODUCT((Lektionslista[DAG]=Skolschema[[#Headers],[TORSDAG]])*(ROUNDDOWN($B54,10)>=ROUNDDOWN(Lektionslista[STARTTID],10))*($B54<=Lektionslista[SLUTTID]),Lektionslista[UNIK]),Lektionslista[UNIK],0),2),0)","v":0},{"$f":"IFERROR(INDEX(Lektionslista[],MATCH(SUMPRODUCT((Lektionslista[DAG]=Skolschema[[#Headers],[FREDAG]])*(ROUNDDOWN($B54,10)>=ROUNDDOWN(Lektionslista[STARTTID],10))*($B54<=Lektionslista[SLUTTID]),Lektionslista[UNIK]),Lektionslista[UNIK],0),2),0)","v":0},{"$f":"IFERROR(INDEX(Lektionslista[],MATCH(SUMPRODUCT((Lektionslista[DAG]=Skolschema[[#Headers],[LÖRDAG]])*(ROUNDDOWN($B54,10)>=ROUNDDOWN(Lektionslista[STARTTID],10))*($B54<=Lektionslista[SLUTTID]),Lektionslista[UNIK]),Lektionslista[UNIK],0),2),0)","v":0}]
[null,"20:45:00",{"$f":"IFERROR(INDEX(Lektionslista[],MATCH(SUMPRODUCT((Lektionslista[DAG]=Skolschema[[#Headers],[SÖNDAG]])*(ROUNDDOWN($B55,10)>=ROUNDDOWN(Lektionslista[STARTTID],10))*($B55<=Lektionslista[SLUTTID]),Lektionslista[UNIK]),Lektionslista[UNIK],0),2),0)","v":0},{"$f":"IFERROR(INDEX(Lektionslista[],MATCH(SUMPRODUCT((Lektionslista[DAG]=Skolschema[[#Headers],[MÅNDAG]])*(ROUNDDOWN($B55,10)>=ROUNDDOWN(Lektionslista[STARTTID],10))*($B55<=Lektionslista[SLUTTID]),Lektionslista[UNIK]),Lektionslista[UNIK],0),2),0)","v":0},{"$f":"IFERROR(INDEX(Lektionslista[],MATCH(SUMPRODUCT((Lektionslista[DAG]=Skolschema[[#Headers],[TISDAG]])*(ROUNDDOWN($B55,10)>=ROUNDDOWN(Lektionslista[STARTTID],10))*($B55<=Lektionslista[SLUTTID]),Lektionslista[UNIK]),Lektionslista[UNIK],0),2),0)","v":0},{"$f":"IFERROR(INDEX(Lektionslista[],MATCH(SUMPRODUCT((Lektionslista[DAG]=Skolschema[[#Headers],[ONSDAG]])*(ROUNDDOWN($B55,10)>=ROUNDDOWN(Lektionslista[STARTTID],10))*($B55<=Lektionslista[SLUTTID]),Lektionslista[UNIK]),Lektionslista[UNIK],0),2),0)","v":0},{"$f":"IFERROR(INDEX(Lektionslista[],MATCH(SUMPRODUCT((Lektionslista[DAG]=Skolschema[[#Headers],[TORSDAG]])*(ROUNDDOWN($B55,10)>=ROUNDDOWN(Lektionslista[STARTTID],10))*($B55<=Lektionslista[SLUTTID]),Lektionslista[UNIK]),Lektionslista[UNIK],0),2),0)","v":0},{"$f":"IFERROR(INDEX(Lektionslista[],MATCH(SUMPRODUCT((Lektionslista[DAG]=Skolschema[[#Headers],[FREDAG]])*(ROUNDDOWN($B55,10)>=ROUNDDOWN(Lektionslista[STARTTID],10))*($B55<=Lektionslista[SLUTTID]),Lektionslista[UNIK]),Lektionslista[UNIK],0),2),0)","v":0},{"$f":"IFERROR(INDEX(Lektionslista[],MATCH(SUMPRODUCT((Lektionslista[DAG]=Skolschema[[#Headers],[LÖRDAG]])*(ROUNDDOWN($B55,10)>=ROUNDDOWN(Lektionslista[STARTTID],10))*($B55<=Lektionslista[SLUTTID]),Lektionslista[UNIK]),Lektionslista[UNIK],0),2),0)","v":0}]
[null,"21:00:00",{"$f":"IFERROR(INDEX(Lektionslista[],MATCH(SUMPRODUCT((Lektionslista[DAG]=Skolschema[[#Headers],[SÖNDAG]])*(ROUNDDOWN($B56,10)>=ROUNDDOWN(Lektionslista[STARTTID],10))*($B56<=Lektionslista[SLUTTID]),Lektionslista[UNIK]),Lektionslista[UNIK],0),2),0)","v":0},{"$f":"IFERROR(INDEX(Lektionslista[],MATCH(SUMPRODUCT((Lektionslista[DAG]=Skolschema[[#Headers],[MÅNDAG]])*(ROUNDDOWN($B56,10)>=ROUNDDOWN(Lektionslista[STARTTID],10))*($B56<=Lektionslista[SLUTTID]),Lektionslista[UNIK]),Lektionslista[UNIK],0),2),0)","v":0},{"$f":"IFERROR(INDEX(Lektionslista[],MATCH(SUMPRODUCT((Lektionslista[DAG]=Skolschema[[#Headers],[TISDAG]])*(ROUNDDOWN($B56,10)>=ROUNDDOWN(Lektionslista[STARTTID],10))*($B56<=Lektionslista[SLUTTID]),Lektionslista[UNIK]),Lektionslista[UNIK],0),2),0)","v":0},{"$f":"IFERROR(INDEX(Lektionslista[],MATCH(SUMPRODUCT((Lektionslista[DAG]=Skolschema[[#Headers],[ONSDAG]])*(ROUNDDOWN($B56,10)>=ROUNDDOWN(Lektionslista[STARTTID],10))*($B56<=Lektionslista[SLUTTID]),Lektionslista[UNIK]),Lektionslista[UNIK],0),2),0)","v":0},{"$f":"IFERROR(INDEX(Lektionslista[],MATCH(SUMPRODUCT((Lektionslista[DAG]=Skolschema[[#Headers],[TORSDAG]])*(ROUNDDOWN($B56,10)>=ROUNDDOWN(Lektionslista[STARTTID],10))*($B56<=Lektionslista[SLUTTID]),Lektionslista[UNIK]),Lektionslista[UNIK],0),2),0)","v":0},{"$f":"IFERROR(INDEX(Lektionslista[],MATCH(SUMPRODUCT((Lektionslista[DAG]=Skolschema[[#Headers],[FREDAG]])*(ROUNDDOWN($B56,10)>=ROUNDDOWN(Lektionslista[STARTTID],10))*($B56<=Lektionslista[SLUTTID]),Lektionslista[UNIK]),Lektionslista[UNIK],0),2),0)","v":0},{"$f":"IFERROR(INDEX(Lektionslista[],MATCH(SUMPRODUCT((Lektionslista[DAG]=Skolschema[[#Headers],[LÖRDAG]])*(ROUNDDOWN($B56,10)>=ROUNDDOWN(Lektionslista[STARTTID],10))*($B56<=Lektionslista[SLUTTID]),Lektionslista[UNIK]),Lektionslista[UNIK],0),2),0)","v":0}]

{"sheet":"Klasslista","index":1,"n_rows":10,"n_cols":8,"rows_kept":10,"merged":[[0,1,0,5],[0,6,0,7]]}
[null,"KLASSLISTA",{"$nulls":4},"Skolschema"]
[null,"KLASS","ID","DAG","PLATS","STARTTID","SLUTTID","UNIK"]
[null,"Tekniskt skrivande","WR-121","MÅNDAG","Byggnad A","13:00:00","14:00:00",{"$f":"ROW()-ROW(Lektionslista[[#Headers],[UNIK]])","v":1}]
[null,"Tekniskt skrivande","WR-121","ONSDAG","Byggnad A","13:00:00","14:00:00",{"$f":"ROW()-ROW(Lektionslista[[#Headers],[UNIK]])","v":2}]
[null,"Hålla tal","SP-111","MÅNDAG","Byggnad B","16:00:00","17:00:00",{"$f":"ROW()-ROW(Lektionslista[[#Headers],[UNIK]])","v":3}]
[null,"Hälsovård och träning","HPE-295","TISDAG","Byggnad B","11:00:00","12:00:00",{"$f":"ROW()-ROW(Lektionslista[[#Headers],[UNIK]])","v":4}]
[null,"Hälsovård och träning","HPE-295","TORSDAG","Byggnad B","11:00:00","12:00:00",{"$f":"ROW()-ROW(Lektionslista[[#Headers],[UNIK]])","v":5}]
[null,"Algebra","MTH-113","MÅNDAG","Byggnad C","08:10:00","09:15:00",{"$f":"ROW()-ROW(Lektionslista[[#Headers],[UNIK]])","v":6}]
[null,"Algebra","MTH-113","ONSDAG","Byggnad C","08:10:00","09:15:00",{"$f":"ROW()-ROW(Lektionslista[[#Headers],[UNIK]])","v":7}]
[null,"Algebra","MTH-113","FREDAG","Byggnad C","08:10:00","09:15:00",{"$f":"ROW()-ROW(Lektionslista[[#Headers],[UNIK]])","v":8}]